Cogmind - Beta 16 @@@ ROGUE MODE // 2026.01.23 @ 06:06:38 Player: qwewqetest Result: Defending 0bPrime! Performance ------------- Evolutions (8) 4000 Regions Visited (27) 5400 Robots Destroyed (318) 1590 Value Destroyed (15763) 15763 Prototype IDs (127) 2540 Alien Tech Used (6) 1200 Bonus (22715) 22715 TOTAL SCORE: 53208 Bonus ------- High Alert Combat Kills 6767 Follower Combat Kills 529 Registered with UFD 300 Met Optimus in HQ 500 Met Imprinter 300 Met Zhirov 300 MAIN.C Attacked Warlord 500 Met Optimus at Protoforge 1000 Executed Drillbomb Mission 10000 Win 3000 Friendly Fire -481 Cogmind --------- Core Integrity 109/1450 Matter 1050/1050 Energy 1400/1400 System Corruption 0% Temperature Cool (0) Movement Hovering (33) Location 0bPrime Parts ------- > --- POWER (2) -------- Experimental Antimatter Reactor Experimental Antimatter Reactor > --- PROPULSION (8) --- Improved Antigrav System Gravjet Array Gravjet Array Concept Combat Aerolev Unit Concept Gyrokinetic System Concept Gyrokinetic System > --- UTILITY (11) ----- Concept Thermoelectric Network Concept Antigrav Storage Unit Concept NT7 Matterbank Experimental Active Sensor Suite Concept Hypertargeting System Concept Core Analysis Suite Concept Core Analysis Suite Experimental Reaction Control System Makeshift Medium Armor Plating Makeshift Medium Armor Plating > --- WEAPON (2) ------- Concept Rapid Grenade Launcher > --- INVENTORY (25) --- Hybrid Graviton Reactor Hybrid Graviton Reactor Gravjet Array Concept Gyrokinetic System Concept Phasing Heat Sink Concept Weapon Articulator Core Cannon Concept Helical Railcannon Concept Heavy Railcannon Sigix Broadsword Peak State ------------ > --- POWER ------------ Concept Zero-point Core Concept Zero-point Core > --- PROPULSION ------- Gravjet Array Gravjet Array Concept Combat Aerolev Unit Concept Combat Aerolev Unit Concept Gyrokinetic System Concept Gyrokinetic System > --- UTILITY ---------- Concept Phasing Heat Sink Concept Thermoelectric Network Concept Antigrav Storage Unit Concept NT7 Matterbank Concept Hypertargeting System Concept Core Analysis Suite Concept Core Analysis Suite Makeshift Heavy Armor Plating Experimental System Purifier Experimental System Purifier > --- WEAPON ----------- Sigix Broadsword > --- INVENTORY -------- Experimental Antimatter Reactor Experimental Antimatter Reactor Hybrid Graviton Reactor Hybrid Graviton Reactor Concept Zero-point Core Gravjet Array Concept Gyrokinetic System Concept Thermoelectric Network Concept Chromion Battery Concept Hypertargeting System Concept Weapon Articulator Femtoactuators Experimental Reaction Control System Concept Plasma Driver Core Cannon Concept XC Strikerail Concept Helical Railcannon Concept Heavy Railcannon Concept Rapid Grenade Launcher Concept Rapid Grenade Launcher Concept Smart ZDS Concept Smart ZDS [Rating: 281] Favorites ----------- Power Light Ion Engine Engine Light Ion Engine Power Core Concept Zero-point Core Reactor Zionite Light DM Reactor Propulsion Aluminum Leg Leg Aluminum Leg Hover Unit Gravjet Array Flight Unit Impulse Thruster Utility Medium Storage Unit Device Scrap Suit Storage Medium Storage Unit Processor Makeshift Salvage Targeting Computer Hackware Advanced Hacking Suite Protection Improved Light Armor Plating Weapon Overtuned Beamcaster Energy Gun Overtuned Beamcaster Energy Cannon Concept Plasma Driver Ballistic Gun Heavy Assault Rifle Ballistic Cannon Enhanced Gauss Cannon Launcher Concept Rapid Grenade Launcher Special Weapon RU-N14's Throwing Claymores v3 Impact Weapon Makeshift Hammer Slashing Weapon Sigix Broadsword Piercing Weapon Spear Build | -11 -10 -10 -9 -9 -9 -9 -6 -6 -6 -6 -6 -5 -5 -5 -5 -5 -4 -4 -4 -4 -4 -3 -3 -3 -2 -2 -2 ------- Run | Yrd Mat Min Mat Sto Rec Scr Fac Low Low Zio Dee Pro Fac Upp Upp Zhi Pro Fac Upp Upp War Pro Res Qua Res Tes Frg Slots Evolved 16 | . . . 2 . . . 6 . . . . . 2 . . . . 2 . . . . 2 . 2 . . Power 1 | . . . . . . . . . . . . . . . . . . 1 . . . . . . . . . Propulsion 6 | . . . 1 . . . 1 . . . . . 2 . . . . 1 . . . . 1 . . . . Utility 9 | . . . 1 . . . 5 . . . . . . . . . . . . . . . 1 . 2 . . Weapon . | . . . . . . . . . . . . . . . . . . . . . . . . . . . . Parts Attached 295 | . 8 5 21 29 5 4 13 4 2 8 2 6 16 4 1 4 3 23 4 8 3 11 17 3 5 6 80 Power 29 | . 2 1 2 3 1 . 2 . . . 1 . 1 . . 1 . 1 . 3 . 2 3 . . . 6 Engine 12 | . 2 1 1 3 1 . 2 . . . . . . . . . . . . 2 . . . . . . . Core 4 | . . . 1 . . . . . . . . . . . . . . . . 1 . . . . . . 2 Reactor 13 | . . . . . . . . . . . 1 . 1 . . 1 . 1 . . . 2 3 . . . 4 Propulsion 79 | . 4 3 4 10 . . 2 2 . 6 1 1 5 . . . . 7 1 2 1 5 6 . 1 1 17 Treads . | . . . . . . . . . . . . . . . . . . . . . . . . . . . . Leg 40 | . 4 3 3 10 . . 2 2 . 6 1 1 5 . . . . 3 . . . . . . . . . Wheel . | . . . . . . . . . . . . . . . . . . . . . . . . . . . . Hover 18 | . . . 1 . . . . . . . . . . . . . . . 1 . . . . . . . 16 Flight 21 | . . . . . . . . . . . . . . . . . . 4 . 2 1 5 6 . 1 1 1 Utility 126 | . . 1 8 5 2 1 9 2 2 1 . 2 3 4 1 3 . 12 2 3 1 2 8 1 4 3 46 Device 58 | . . . 3 . . 1 5 1 1 1 . 1 1 2 1 1 . 8 1 . . 1 6 . 1 3 20 Storage 8 | . . 1 2 . . . . . . . . . . 1 . 1 . . . . . . . . . . 3 Processor 29 | . . . 2 2 . . 3 1 . . . 1 1 . . . . 1 1 2 1 . 2 1 1 . 10 Hackware 2 | . . . . . . . . . . . . . . . . . . 1 . . . . . . 1 . . Protection 29 | . . . 1 3 2 . 1 . 1 . . . 1 1 . 1 . 2 . 1 . 1 . . 1 . 13 Artifact . | . . . . . . . . . . . . . . . . . . . . . . . . . . . . Weapon 61 | . 2 . 7 11 2 3 . . . 1 . 3 7 . . . 3 3 1 . 1 2 . 2 . 2 11 Energy Gun 14 | . 1 . 2 3 . 2 . . . . . 1 . . . . 3 1 . . . . . . . 1 . Energy Cannon 5 | . . . . 1 . . . . . . . . 1 . . . . . . . . . . . . . 3 Ballistic Gun 16 | . 1 . 4 2 2 1 . . . . . 2 2 . . . . . . . . . . . . . 2 Ballistic Cannon 8 | . . . . 2 . . . . . . . . 2 . . . . . . . . . . . . 1 3 Launcher 8 | . . . 1 2 . . . . . 1 . . 1 . . . . . . . . . . . . . 3 Special Weapon 3 | . . . . . . . . . . . . . . . . . . . . . 1 2 . . . . . Impact Weapon 2 | . . . . 1 . . . . . . . . . . . . . . . . . . . 1 . . . Slashing Weapon 3 | . . . . . . . . . . . . . . . . . . 1 1 . . . . 1 . . . Piercing Weapon 2 | . . . . . . . . . . . . . 1 . . . . 1 . . . . . . . . . Special Melee Weapon . | . . . . . . . . . . . . . . . . . . . . . . . . . . . . Unidentified Prototypes 41 | . . . . 6 . . 1 . . . 2 . 2 . . 4 . 2 . . 3 . 1 2 . 5 13 Corrupted Parts 6 | . . . . . . . . . . 2 . . 2 . . . 1 . . 1 . . . . . . . System Corruption 35 | . . . . . . . . . . 8 . . 11 . . . 6 . . 10 . . . . . . . Parts Lost 51 | . . . . 1 . . . . . 2 . 3 8 2 . . 10 5 . . . 2 1 . . 1 16 Power 2 | . . . . . . . . . . . . . . . . . . 1 . . . 1 . . . . . Propulsion 18 | . . . . . . . . . . 1 . 1 3 2 . . 4 1 . . . . 1 . . . 5 Utility 22 | . . . . 1 . . . . . 1 . . 4 . . . 2 3 . . . 1 . . . 1 9 Weapon 9 | . . . . . . . . . . . . 2 1 . . . 4 . . . . . . . . . 2 Highest Loss Streak 6 | . . . . 1 . . . . . 1 . 3 3 2 . . 6 3 . . . 1 1 . . 1 4 To Critical Strikes 2 | . . . . . . . . . . . . 1 . . . . . . . . . . . . . . 1 Average Backups 8 | 6 7 7 7 8 8 6 7 8 7 8 8 9 7 9 9 8 7 4 4 4 4 4 4 3 4 4 12 Power . | 1 1 1 1 . . . . 1 1 1 1 1 . . . . . . . . . . . 1 1 1 1 Propulsion 1 | 4 4 3 2 2 2 . . . . . 1 2 . 2 1 . . . 2 2 1 . . . . . 2 Utility 2 | . . . . 2 2 2 3 4 3 3 3 3 1 1 1 3 3 1 2 2 2 2 2 . . . 3 Weapon 3 | 1 1 3 3 4 4 3 3 3 3 3 3 3 5 6 5 4 2 . . . 1 2 1 1 2 2 5 Tool/Special . | . . . . . . . . . . . . . . . . . . . . . . . . . . . . Unused Backups 74 | . 7 1 1 2 . 20 17 . . . 1 . 2 . 2 1 1 . . . 1 . 1 1 . . 16 Power 10 | . . . . . . 2 2 . . . 1 . . . . . . . . . . . . . . . 5 Propulsion 22 | . 5 . 1 . . 6 3 . . . . . . . 2 . . . . . 1 . 1 . . . 3 Utility 22 | . 1 . . . . 9 8 . . . . . 1 . . 1 1 . . . . . . . . . 1 Weapon 20 | . 1 1 . 2 . 3 4 . . . . . 1 . . . . . . . . . . 1 . . 7 Tool/Special . | . . . . . . . . . . . . . . . . . . . . . . . . . . . . Average Slot Usage (%) 87 | . 85 85 95 98 100 92 89 93 93 92 86 92 92 91 88 76 60 52 63 77 90 92 85 79 76 82 82 Engine 4 | . 14 14 5 11 11 11 6 6 6 6 2 . . . . . . . . 1 5 5 . . . . . Core 1 | . . . 5 . . . . . . . . . . . . . . . . 2 5 . . . . . 3 Reactor 2 | . . . . . . . . . . . 3 6 5 5 5 5 3 4 5 3 . 3 7 9 8 8 4 Leg 19 | . 28 28 27 32 33 33 24 26 26 25 26 25 34 30 23 23 14 1 . . . . . . . . . Hover 3 | . . . 4 . . . . . . . . . . . . . . . 4 5 5 2 . . . . 19 Flight 4 | . . . . . . . . . . . . . . . . . . 16 15 20 27 33 28 23 21 21 5 Device 13 | . . . 8 . . 6 23 20 24 26 26 26 14 12 11 12 7 17 23 21 13 10 13 17 17 17 18 Storage 7 | . 14 14 11 11 11 11 6 6 6 6 6 6 5 10 11 9 5 5 2 . . . . . . . 5 Processor 10 | . . . 5 8 12 4 6 13 7 6 6 12 16 17 17 17 13 1 6 16 22 26 22 19 18 21 11 Protection 4 | . . . 4 12 9 4 5 6 6 5 . . 2 1 5 5 3 . . . 4 4 4 4 4 4 5 Energy Gun 3 | . 8 14 7 . . 6 7 6 11 11 6 8 1 . . . 2 . . . . . . . . . . Ballistic Gun 6 | . 19 14 13 20 22 15 4 6 1 . 6 3 1 . . . . . . . . . . . . . . Ballistic Cannon 1 | . . . . . . . . . . . . . 2 11 11 . 6 . . . . . . . . . 1 Peak Build Rating 281 | 6 6 8 17 20 20 33 63 69 69 65 67 67 84 81 69 71 71 100 93 93 106 114 142 155 168 172 281 Average Rating 85 | 6 5 6 14 16 17 24 54 65 64 62 65 65 75 74 67 58 51 70 78 86 96 105 134 151 159 169 238 On Entrance 68 | 6 6 6 7 17 20 14 31 62 69 62 62 67 67 72 68 69 71 11 99 83 93 106 106 140 155 168 172 Avg Prop Armor Cover (%) 4 | . . . 4 . . . . . . 4 4 . . . . . . 14 5 4 4 4 . . . . 2 Naked Turns 94 | . . . . . . . . . . . . . . . . . 94 . . . . . . . . . . Heaviest Build 127 | 11 14 14 40 28 27 28 43 41 45 48 42 41 43 50 54 56 56 34 27 32 26 37 53 58 58 58 127 Greatest Support 132 | 20 20 20 30 33 33 33 63 80 80 80 84 84 124 122 78 78 78 81 27 31 36 46 59 59 59 59 132 Greatest Overweight (x) 2 | . 1 . 1 2 . . . . . . . . . . . . 1 . . 1 . . . . . . 1 Average Overweight (x) . | . . . . . . . . . . . . . . . . . . . . . . . . . . . . Largest Inventory Capacity 25 | 8 8 8 15 10 10 10 10 10 10 10 10 10 10 10 10 10 10 10 5 5 5 5 5 5 5 5 25 Average Capacity 10 | 8 8 8 8 10 10 10 10 10 10 10 10 10 10 10 10 10 8 5 5 5 5 5 5 5 5 5 19 Most Carried 25 | 6 8 8 10 10 10 10 10 10 10 10 10 10 10 10 10 10 10 5 5 5 5 5 5 5 5 5 25 Average Carried 9 | 6 7 7 8 9 9 7 9 10 9 9 9 10 8 10 9 9 8 4 4 4 4 4 4 4 5 4 16 Final Capacity 25 | 8 8 8 10 10 10 10 10 10 10 10 10 10 10 10 10 10 5 5 5 5 5 5 5 5 5 5 25 Final Carried 14 | 6 6 8 9 10 8 9 10 10 10 10 10 10 10 10 10 10 5 3 5 5 5 5 3 5 5 5 14 Scrap Suit Usage (%) 3 | . . . . . . 2 . . . 2 78 . . . . . . . . . . . . . . . . Parts Cannibalized 2 | . . . . . . 1 . . . 1 . . . . . . . . . . . . . . . . . Class Distribution -------------------- 24% | Scavenger-Mutant 21% | Mutant 14% | Derelict-Mutant 8% | Scout 8% | Scavenger-Scrapper 6% | Sprinter 5% | Scavenger-Sprinter 3% | Derelict-Scout Dominant Class ---------------- Mutant | -10/Materials Mutant | -10/Mines Mutant | -9/Materials Scavenger-Mutant | -9/Storage Scavenger-Mutant | -9/Recycling Scavenger-Scrapper | -9/Scraptown Scavenger-Mutant | -6/Factory Mutant | -6/Lower Caves Derelict-Mutant | -6/Lower Caves Derelict-Mutant | -6/Zion Mutant | -6/Deep Caves Scavenger-Mutant | -5/Proximity Caves Scavenger-Mutant | -5/Factory Derelict-Mutant | -5/Upper Caves Derelict-Mutant | -5/Upper Caves Derelict-Mutant | -5/Zhirov Mutant | -4/Proximity Caves Sprinter | -4/Factory Gladiator | -4/Upper Caves Derelict-Scout | -4/Upper Caves Derelict-Scout | -4/Warlord Scavenger-Sprinter | -3/Proximity Caves Derelict-Sprinter | -3/Research Scout | -3/Quarantine Scout | -2/Research Scout | -2/Testing Scavenger-Sprinter | -2/Protoforge Resources | -11 -10 -10 -9 -9 -9 -9 -6 -6 -6 -6 -6 -5 -5 -5 -5 -5 -4 -4 -4 -4 -4 -3 -3 -3 -2 -2 -2 ----------- Run | Yrd Mat Min Mat Sto Rec Scr Fac Low Low Zio Dee Pro Fac Upp Upp Zhi Pro Fac Upp Upp War Pro Res Qua Res Tes Frg Matter Collected 10344 | 200 158 105 801 1061 182 40 238 134 70 233 156 252 522 263 167 . 422 319 98 163 . 160 199 106 30 18 4247 Remotely 340 | . . . . . . . . . . . . . . 153 167 . 20 . . . . . . . . . . Salvage Created 14491 | . 340 173 997 1569 518 . 357 130 229 616 159 366 1335 54 . . 360 270 58 129 . 282 455 264 30 18 5782 Parts 693 | . 17 6 62 102 23 . 13 1 1 38 . 27 67 1 . . 17 13 2 10 . 14 18 9 3 3 246 Haulers Intercepted 11 | . 1 . 4 6 . . . . . . . . . . . . . . . . . . . . . . . Recyclers Shooed 19 | . . . 4 4 3 . . . . . . . 8 . . . . . . . . . . . . . . Parts Field Recycled . | . . . . . . . . . . . . . . . . . . . . . . . . . . . . Retrieved Matter . | . . . . . . . . . . . . . . . . . . . . . . . . . . . . Parts Self-Destructed 53 | . . . . . . . . . 6 . . 21 . . 1 . 12 . . 7 . 6 . . . . . Prevented 9 | . . . . . . . . . 1 . . 1 . . . . 3 . . 4 . . . . . . . Parts Restored 13 | . . . . . . . . . . . . . . . . . . . . . . . . . . . 13 Faulty 13 | . . . . . . . . . . . . . . . . . . . . . . . . . . . 13 Kills | -11 -10 -10 -9 -9 -9 -9 -6 -6 -6 -6 -6 -5 -5 -5 -5 -5 -4 -4 -4 -4 -4 -3 -3 -3 -2 -2 -2 ------- Run | Yrd Mat Min Mat Sto Rec Scr Fac Low Low Zio Dee Pro Fac Upp Upp Zhi Pro Fac Upp Upp War Pro Res Qua Res Tes Frg Combat Hostiles Destroyed 266 | . 9 1 22 31 2 . 6 . 1 6 8 8 13 1 . . 10 1 . 1 . 8 6 . . . 132 Melee 63 | . . . . 2 . . . . . . . . . . . . . 1 . 1 . 4 2 . . . 53 Guns 67 | . 9 1 11 19 2 . 6 . . 2 8 4 2 . . . 3 . . . . . . . . . . Cannons 50 | . . . . . . . . . . . . . 10 1 . . 3 . . . . 1 1 . . . 34 AOE 74 | . . . 11 9 . . . . . 1 . 4 . . . . 4 . . . . 3 3 . . . 39 Classes Destroyed 31 | . 3 1 3 4 . . 1 . . 2 1 1 1 1 . . 1 1 . 1 . . . . . . 10 Worker 3 | . . . 1 1 . . . . . . . . 1 . . . . . . . . . . . . . . Builder 4 | . . . . . . . . . . . . . 3 . . . . . . . . . 1 . . . . Tunneler 1 | . . . . . . . . . . . . . . . . . . 1 . . . . . . . . . Hauler 12 | . 1 . 4 6 . . . . . . . . . . . . . . . . . . . . . . 1 Recycler 19 | . . 2 1 3 6 . . . . . . . 4 . . . . 1 . . . . 1 1 . . . Minesweeper 2 | . . . . . . . . . . . . . . . . . . . . 2 . . . . . . . Mechanic 7 | . . . . 2 . . . . . . . . . . . . . . . . . . . . . . 5 Operator 7 | . . . . 1 . . . . . . . . . . . . . 1 . . . . . 1 1 1 2 Drone 33 | . . . . . . . . . . . . . . . . . 1 . . . . . . . . . 32 Watcher 10 | . . . 3 2 . . . . . . . . . . . . . . . . . . 1 2 . . 2 Swarmer 46 | . 3 1 7 9 . . . . . . . 4 . . . . 4 . . 1 . 6 4 . . . 7 Saboteur 1 | . . . . . . . . . . . . . . . . . . . . . . . . . . . 1 Grunt 47 | . 6 . 9 13 . . 3 . 1 . . . . . . . 3 1 . . . 2 . . . . 9 Brawler 6 | . . . . 1 . . . . . . . . . . . . . . . . . . . . . . 5 Duelist 5 | . . . . 1 . . 1 . . . . . . . . . . . . . . . . . . . 3 Protector 6 | . . . . . . . . . . . . . . . . . . . . . . . . . . . 6 Researcher 1 | . . . . . . . . . . . . . . . . . . . . . . . . . . . 1 Sentry 34 | . . . 6 7 2 . 1 . . . . . 4 1 . . . . . . . . 2 . . . 11 Specialist 1 | . . . . . . . . . . . . . . . . . . . . . . . . . . . 1 Hunter 18 | . . . . . . . . . . . . 2 4 . . . . . . . . . . . . . 12 Programmer 21 | . . . . . . . 1 . . . . 2 5 . . . 2 . . . . . . . . . 11 Hotshot 3 | . . . . . . . . . . . . . . . . . . . . . . . . . . . 3 Decapitator 11 | . . . . . . . . . . . . . . . . . . . . . . . . . . . 11 Immortal 2 | . . . . . . . . . . . . . . . . . . . . . . . . . . . 2 Striker 3 | . . . . . . . . . . . . . . . . . . . . . . . . . . . 3 Executioner 7 | . . . . . . . . . . . . . . . . . . . . . . . . . . . 7 Alpha 7 2 | . . . . . . . . . . . . . . . . . . . . . . . . . . . 2 V-Series 5 | . . . . . . . . . . . . . . . . . . . . . . . . . . . 5 Elite 1 | . . . . . . . . . . . . . . . . . . . . . . . . . . . 1 Zionite 7 | . . . . . . . . . . 7 . . . . . . . . . . . . . . . . . Packrat 4 | . . . . . . . . 2 2 . . . . . . . . . . . . . . . . . . Samaritan 3 | . . . . . . . . . . . . . . 1 . . . . 1 1 . . . . . . . Assembled 8 | . . . . . . . . . . . 8 . . . . . . . . . . . . . . . . Mutant 5 | . . . . . . . . . . 5 . . . . . . . . . . . . . . . . . Best Kill Streak 13 | . 5 1 7 7 4 . 4 . 1 6 3 4 7 1 . . 4 2 . 1 . 3 4 4 1 1 13 Combat Bots Only 12 | . 5 1 4 6 1 . 4 . 1 3 3 4 2 1 . . 4 1 . 1 . 3 4 . . . 12 Max Kills in Single Turn 7 | . 1 1 2 2 1 . 1 1 1 2 2 2 1 1 . . 4 1 1 1 . 2 4 1 1 1 7 Gunslinging 1 | . . . . . . . . . . . 1 . . . . . . . . . . . . . . . . Exploded 6 | . . . 2 2 . . . . . 1 . 2 . . . . 4 . . . . 1 3 . . . 6 Melee 1 | . . . . 1 . . . . . . . . . . . . . 1 . 1 . 1 1 . . . 1 Uniques/NPCs Destroyed 1 | . . . . . . . . . . 1 . . . . . . . . . . . . . . . . . Imprinter (-6/Zion) Combat | -11 -10 -10 -9 -9 -9 -9 -6 -6 -6 -6 -6 -5 -5 -5 -5 -5 -4 -4 -4 -4 -4 -3 -3 -3 -2 -2 -2 -------- Run | Yrd Mat Min Mat Sto Rec Scr Fac Low Low Zio Dee Pro Fac Upp Upp Zhi Pro Fac Upp Upp War Pro Res Qua Res Tes Frg Hostile Shots Fired 1864 | . 60 7 83 102 20 . 37 1 4 113 18 79 134 14 . . 125 108 . 7 . 49 79 66 21 22 715 Missed 826 | . 19 1 32 27 9 . 16 . 2 47 5 20 53 6 . . 40 57 . 5 . 29 43 42 10 14 349 Hits 1038 | . 41 6 51 75 11 . 21 1 2 66 13 59 81 8 . . 85 51 . 2 . 20 36 24 11 8 366 Melee 39 | . . . . 1 . . . 1 . 3 4 . . . . . 1 . . . . . . . . . 29 Projectile 999 | . 41 6 51 74 11 . 21 . 2 63 9 59 81 8 . . 84 51 . 2 . 20 36 24 11 8 337 AOE 5 | . . . . . . . . . . . . . . . . . . . . . . . . . . . 5 Critical Strikes 68 | . . . 1 1 1 . 1 . . . . 2 10 . . . 8 3 . 1 . . . . . . 40 Part Disruptions 7 | . . . . . . . . . . . 3 . . . . . . 1 . 1 . . . 1 . . 1 Actively Blocked 1 | . . . . . . . . . . . . . . . . . . . . . . . . 1 . . . Damage Taken 21986 | . 407 99 643 918 159 . 271 25 38 1044 235 947 1738 196 . . 1666 835 . 112 38 405 463 238 97 44 11368 Core 3129 | . 106 7 120 117 . . 42 . . 172 12 220 152 . . . 516 166 . . . 50 182 11 23 12 1221 Absorbed by Shields 2432 | . . . . . . . . . . . . . . . . . . 185 . . . . 451 246 100 46 1404 Redirected to Shielding 408 | . . . . . . . . . . . . . . . . . . 7 . . 8 70 33 28 15 . 247 Regen/Repaired (Parts) 1920 | . . . . . . 3 . . . 10 . . . . . . . . . . 5 . . 152 44 37 1669 Core Remaining (%) 54 | 100 . 54 . . . 40 . . . . . 47 . . . . 33 . . . . 72 . 85 . . 7 Volleys Fired 675 | . 30 15 78 98 17 . 29 8 16 18 19 28 101 9 2 . 27 . . . . 5 2 . . . 173 Largest 2 | . 2 2 2 2 2 . 2 2 2 2 2 2 2 2 2 . 2 . . . . 2 1 . . . 2 Hottest 280 | . 70 70 90 66 46 . 200 140 200 140 140 140 94 94 94 . 120 . . . . . . . . . 280 Shots Fired 1155 | . 60 30 141 186 34 . 55 16 28 27 40 39 130 17 6 . 44 . . . . 6 2 . . . 294 Gun 699 | . 60 30 126 173 34 . 55 16 28 18 40 36 48 . . . 17 . . . . . . . . . 18 Cannon 370 | . . . . 6 . . . . . . . . 79 17 6 . 23 . . . . . . . . . 239 Launcher 78 | . . . 15 7 . . . . . 9 . 3 3 . . . 4 . . . . . . . . . 37 Special 8 | . . . . . . . . . . . . . . . . . . . . . . 6 2 . . . . Kinetic 689 | . 41 15 98 179 34 . 25 8 6 9 20 18 47 17 6 . 23 . . . . . . . . . 143 Thermal 309 | . 19 15 . . . . 30 8 22 9 20 18 54 . . . . . . . . . . . . . 114 Explosive 73 | . . . 15 7 . . . . . . . . 2 . . . 4 . . . . 6 2 . . . 37 Electromagnetic 84 | . . . 28 . . . . . . 9 . 3 27 . . . 17 . . . . . . . . . . Robot Hit Streak 26 | . 8 5 12 19 16 . 5 6 4 5 5 7 17 8 . . 5 . . . . 7 8 . . . 26 Robot Miss Streak 6 | . 2 2 4 3 1 . 2 2 4 2 4 2 3 2 . . 3 . . . . . . . . . 6 Penetration Max 1 | . . . . . . . 1 . . 1 1 . . . . . . . . . . . . . . . 1 Secondary Targets 9 | . . . 1 1 . . 1 . . 2 2 1 . . . . 1 . . . . . . . . . . Max Gunslinging Chain 1 | . . . 1 1 . . 1 . . 1 1 1 . . . . 1 . . . . . . . . . . Shots Hit Robots 805 | . 35 18 94 137 25 . 21 7 9 18 15 18 92 10 . . 21 11 1 5 . 10 13 5 1 2 237 Core Hits 572 | . 18 9 59 67 15 . 13 3 4 20 8 13 37 4 . . 19 3 . 2 . 10 8 1 . 1 258 Critical Kills 13 | . . . . . . . . . . . 1 . . . . . . . . . . . . . . . 12 Critical Parts Destroyed 17 | . . . 1 2 . . 2 1 . . 2 . . . . . . . . . . . . . . . 9 Critical Strikes 62 | . . 3 1 2 . . 4 1 1 4 5 1 4 . . . 2 1 . . . 3 2 . . . 28 Burn 13 | . . 3 . . . . 2 . 1 4 2 1 . . . . . . . . . . . . . . . Meltdown 7 | . . . . . . . . . . . . . . . . . . . . . . . . . . . 7 Destroy 25 | . . . 1 1 . . 2 1 . . 3 . . . . . . . . . . . . . . . 17 Blast 3 | . . . . . . . . . . . . . 2 . . . 1 . . . . . . . . . . Corrupt 3 | . . . . . . . . . . . . . 2 . . . 1 . . . . . . . . . . Smash 1 | . . . . 1 . . . . . . . . . . . . . . . . . . . . . . . Sever 10 | . . . . . . . . . . . . . . . . . . 1 . . . 3 2 . . . 4 Melee Attacks 372 | . . . . 10 . . . . . . . . 17 . . . . 26 6 15 3 13 45 41 21 20 155 Impact 10 | . . . . 10 . . . . . . . . . . . . . . . . . . . . . . . Slashing 345 | . . . . . . . . . . . . . . . . . . 26 6 15 3 13 45 41 21 20 155 Piercing 17 | . . . . . . . . . . . . . 17 . . . . . . . . . . . . . . Sneak Attacks 50 | . . . . . . . . . . . . . 1 . . . . 2 1 3 . 1 3 2 . 1 36 Combat Hostiles 2 | . . . . . . . . . . . . . . . . . . . . . . 1 1 . . . . Follow-up Attacks . | . . . . . . . . . . . . . . . . . . . . . . . . . . . . Damage Inflicted 57019 | . 435 252 2086 3179 397 . 797 274 333 1242 500 654 3350 348 . . 1371 995 149 625 . 1217 1658 670 153 433 35901 Guns 8875 | . 428 238 1298 1974 363 . 776 274 333 517 500 459 851 . . . 247 . . . . . . . . . 617 Cannons 11280 | . . . . 60 . . . . . . . . 2104 348 . . 350 . . . . . . . . . 8418 Explosions 18728 | . . . 777 856 . . . . . 721 . 195 301 . . . 774 . . . . 382 446 . . . 14276 Melee 17733 | . . . . 225 . . . . . . . . 70 . . . . 995 149 625 . 695 1154 670 153 433 12564 Ramming 205 | . 7 14 11 64 34 . 21 . . 4 . . 24 . . . . . . . . . . . . . 26 Kinetic 12012 | . 315 113 920 2034 363 . 444 220 118 314 287 268 885 348 . . 350 . . . . . . . . . 5033 Thermal 7224 | . 113 125 . . . . 332 54 215 303 213 191 1676 . . . . . . . . . . . . . 4002 Explosive 17511 | . . . 777 856 . . . . . . . . . . . . 774 . . . . 382 446 . . . 14276 Electromagnetic 2136 | . . . 378 . . . . . . 621 . 195 695 . . . 247 . . . . . . . . . . Impact 225 | . . . . 225 . . . . . . . . . . . . . . . . . . . . . . . Slashing 17636 | . . . . . . . . . . . . . . . . . . 995 149 625 . 835 1212 670 153 433 12564 Piercing 70 | . . . . . . . . . . . . . 70 . . . . . . . . . . . . . . Highest Corruption 41 | . . . . . . . 2 2 . 10 10 14 19 19 19 19 28 5 5 17 17 . . 1 . . 41 Average Corruption 14 | . . . . . . . 1 1 . 5 10 13 11 19 19 19 22 2 5 11 17 . . 1 . . 22 Corruption Purged 44 | . . . . . . . . 2 . . . . . . . . . . . . . . . . . . 42 Corruption Blocked . | . . . . . . . . . . . . . . . . . . . . . . . . . . . . Effects 390 | . . . . . . . 2 9 . 3 35 15 30 28 27 8 36 7 7 25 1 . . . . . 157 Message Errors 84 | . . . . . . . 1 2 . 1 10 2 4 4 9 1 6 . 2 8 1 . . . . . 33 Matter Fused 94 | . . . . . . . . 2 . 1 6 4 10 8 4 3 7 2 2 8 . . . . . . 37 Heat Flow Errors 32 | . . . . . . . . . . . 1 1 4 2 6 . 1 2 1 1 . . . . . . 13 Energy Discharges 46 | . . . . . . . 1 2 . . 8 2 3 5 1 2 7 1 . 2 . . . . . . 12 Parts Rejected 6 | . . . . . . . . . . . 1 . 1 . . . 1 1 . . . . . . . . 2 Parts Fused 1 | . . . . . . . . . . . . . . . 1 . . . . . . . . . . . . Data Loss (minor) 46 | . . . . . . . . 2 . 1 5 2 5 2 4 . 3 . 1 3 . . . . . . 18 Data Loss (major) 17 | . . . . . . . . 1 . . 1 1 1 2 . 1 4 1 . 1 . . . . . . 4 Misfires 7 | . . . . . . . . . . . 2 . 1 2 2 . . . . . . . . . . . . Alerts 9 | . . . . . . . . . . . 1 1 1 . . 1 1 . 1 1 . . . . . . 2 Misdirections 16 | . . . . . . . . . . . . 1 . . . . 2 . . 1 . . . . . . 12 Weapon Failures 32 | . . . . . . . . . . . . 1 . 3 . . 4 . . . . . . . . . 24 Overload Shots . | . . . . . . . . . . . . . . . . . . . . . . . . . . . . Overflow Damage 5365 | . . . 8 78 . . . . . 7 . 7 92 . . . 21 290 59 380 . 71 271 371 118 166 3426 Projectiles 485 | . . . . . . . . . . . . . 92 . . . 14 . . . . . . . . . 379 Explosions 341 | . . . 8 35 . . . . . 7 . 7 . . . . 7 . . . . 3 19 . . . 255 Melee 4539 | . . . . 43 . . . . . . . . . . . . . 290 59 380 . 68 252 371 118 166 2792 Knockbacks 37 | . . . . 3 . . . . . . . . 6 . . . 5 . . . . . . . . . 23 Impact 4 | . . . . 3 . . . . . . . . 1 . . . . . . . . . . . . . . Kinetic 32 | . . . . . . . . . . . . . 5 . . . 5 . . . . . . . . . 22 Secondary 1 | . . . . . . . . . . . . . . . . . . . . . . . . . . . 1 Self-Inflicted Damage 257 | . . . 6 9 . . . . . 17 . . 18 . . . 22 . . . . . . . . . 185 Shots 10 | . . . 1 1 . . . . . 2 . . 1 . . . 1 . . . . . . . . . 4 Rammed 1 | . . . . . . . . . . . . . . . . . . . . . . . . . . . 1 Targets Rammed 44 | . 4 6 4 18 3 . 4 . . 1 . . 3 . . . . . . . . . . . . . 1 Kicked 43 | . 4 6 4 18 3 . 4 . . 1 . . 3 . . . . . . . . . . . . . . Crushed . | . . . . . . . . . . . . . . . . . . . . . . . . . . . . Highest Temperature 394 | . 168 45 108 394 28 . 187 187 202 150 183 164 191 197 293 . 217 254 198 218 237 96 4 . . . 200 Average Temperature 72 | . 54 18 35 60 12 . 88 87 95 56 75 75 64 76 128 . 46 123 119 99 126 34 1 . . . 55 Received Heat Transfer 4188 | . 129 54 237 330 81 . 36 . 18 103 100 9 189 45 . . 371 66 . 60 . . 32 31 4 . 2293 Thermoelectric Energy+ 740 | . . . . . . . . . . . . . . . . . . . . . . . . . . . 740 Effects 2 | . . . . 2 . . . . . . . . . . . . . . . . . . . . . . . Shutdowns 1 | . . . . 1 . . . . . . . . . . . . . . . . . . . . . . . Interference 1 | . . . . 1 . . . . . . . . . . . . . . . . . . . . . . . Siege Activations . | . . . . . . . . . . . . . . . . . . . . . . . . . . . . Martial Activations . | . . . . . . . . . . . . . . . . . . . . . . . . . . . . Shielding Activations . | . . . . . . . . . . . . . . . . . . . . . . . . . . . . Robots Disrupted 1 | . . . 1 . . . . . . . . . . . . . . . . . . . . . . . . Combat Hostiles . | . . . . . . . . . . . . . . . . . . . . . . . . . . . . Robots Corrupted 7 | . . . . 2 . . . . . 3 . . 2 . . . . . . . . . . . . . . Combat Hostiles 5 | . . . . 1 . . . . . 3 . . 1 . . . . . . . . . . . . . . Parts Fried 25 | . . . 3 2 . . . . . 11 . . 6 . . . 3 . . . . . . . . . . Impact Corruptions 2 | . . . . 2 . . . . . . . . . . . . . . . . . . . . . . . Robots Melted 8 | . . . . . . . . . 1 . . . . . . . . . . . . . . . . . 7 Combat Hostiles 8 | . . . . . . . . . 1 . . . . . . . . . . . . . . . . . 7 Parts Melted 22 | . 1 2 . . . . . . . 2 . 4 . . . . . . . . . . . . . . 13 Heat Transferred 6592 | . 333 592 . . . . 750 100 450 812 600 450 200 . . . . . . . . . . . . . 2305 Parts Sabotaged . | . . . . . . . . . . . . . . . . . . . . . . . . . . . . Parts Stolen . | . . . . . . . . . . . . . . . . . . . . . . . . . . . . Parts Stripped . | . . . . . . . . . . . . . . . . . . . . . . . . . . . . Power Chain Reactions 5 | . . . . . . . . . . 1 . . 4 . . . . . . . . . . . . . . Alert | -11 -10 -10 -9 -9 -9 -9 -6 -6 -6 -6 -6 -5 -5 -5 -5 -5 -4 -4 -4 -4 -4 -3 -3 -3 -2 -2 -2 ------- Run | Yrd Mat Min Mat Sto Rec Scr Fac Low Low Zio Dee Pro Fac Upp Upp Zhi Pro Fac Upp Upp War Pro Res Qua Res Tes Frg Maximum Alert Level 5 | . . . 2 2 1 . . . . . . . . . . . . 3 . . . . 2 2 1 1 5 Low Security (%) 36 | 100 100 100 33 3 1 . 100 . . . . . 100 . . . . . . . . . 71 . . 68 7 Level 1 21 | . . . 23 19 98 . . . . . . . . . . . . . . . . . 26 83 100 31 13 Level 2 17 | . . . 43 76 . . . . . . . . . . . . . . . . . . 1 16 . . 12 Level 3 6 | . . . . . . . . . . . . . . . . . . 100 . . . . . . . . 8 Level 4 4 | . . . . . . . . . . . . . . . . . . . . . . . . . . . 15 Level 5 12 | . . . . . . . . . . . . . . . . . . . . . . . . . . . 42 High Security . | . . . . . . . . . . . . . . . . . . . . . . . . . . . . Max Security . | . . . . . . . . . . . . . . . . . . . . . . . . . . . . Peak Influence 4821 | . 142 91 461 686 320 . 120 . . . . . 106 . . . . 938 . . . . 417 573 390 243 4821 Initial 923 | . . 35 . 179 250 . . . . . . . 30 . . . . 923 . . . . 43 229 321 157 135 Average 748 | . 86 19 305 534 251 . 22 . . . . . 39 . . . . 880 . . . . 162 352 328 187 1880 Influence Increases 13478 | . 232 180 907 1227 299 . 350 . 99 . . 220 540 20 . . 320 1320 . 195 . 185 654 630 200 204 5696 Destroy 0b10 Robot/C 4860 | . 180 100 540 700 40 . 180 . 80 . . 160 260 20 . . 180 20 . 20 . 160 120 . . . 2100 Destroy 0b10 Robot/NC 530 | . 5 10 55 80 30 . . . . . . . 40 . . . 5 15 . 10 . . 15 20 5 5 235 Destroy Leader 874 | . 32 20 156 196 . . 50 . 10 . . 30 100 . . . 30 . . . . 10 32 4 . . 204 Allied During Kill 155 | . . 20 25 91 . . 10 . 9 . . . . . . . . . . . . . . . . . . Successful Hack 183 | . . . 8 38 18 . . . . . . . . . . . . . . . . . 31 36 24 7 21 Select Force Hacks 210 | . . . . . 210 . . . . . . . . . . . . . . . . . . . . . . Disable Machine 945 | . . . 30 30 . . 60 . . . . . . . . . . . . . . . 45 75 15 45 645 Destroy Structure 1941 | . . . 63 62 1 . 35 . . . . . 140 . . . . 40 . . . . 96 60 51 42 1351 Advance Influence 900 | . . . . . . . . . . . . . . . . . . 900 . . . . . . . . . Partial Spotted 285 | . . . . . . . . . . . . . . . . . . 75 . . . . 75 45 15 30 45 Lose Combat Pursuer 2595 | . 15 30 30 30 . . 15 . . . . 30 . . . . 105 270 . 165 . 15 240 390 90 75 1095 Influence Decreases 8659 | . 140 272 482 1009 735 207 254 96 56 43 . 172 486 122 . . 283 546 441 465 100 120 310 466 492 244 1118 Entered New Map 2209 | . . 57 . 246 393 207 . 36 . 43 . . 18 39 . . . 14 301 71 100 . 22 180 252 124 106 Time Decay 5282 | . 140 197 442 553 342 . 234 60 36 . . 162 398 83 . . 233 262 140 334 . 100 278 286 140 110 752 Search Patrol Dispatched 400 | . . . . . . . . . . . . . . . . . . 200 . . . . . . 100 . 100 Lost Part 390 | . . . . 10 . . . . . . . 10 70 . . . 50 50 . . . 20 10 . . 10 160 Lost Ally 378 | . . 18 40 200 . . 20 . 20 . . . . . . . . 20 . 60 . . . . . . . Squads Dispatched 70 | . 2 . 3 12 . . 10 . . . . 1 3 . . . . 8 . . . . 9 6 6 2 8 Investigation 25 | . . . 2 1 . . 5 . . . . . 1 . . . . 4 . . . . 4 1 2 . 5 Extermination 18 | . . . . . . . 2 . . . . . 2 . . . . 3 . . . . 3 3 2 2 1 Reinforcement 17 | . 2 . 1 4 . . 3 . . . . . . . . . . 1 . . . . 2 2 . . 2 Assault 5 | . . . . 2 . . . . . . . 1 . . . . . . . . . . . . 2 . . Garrison 5 | . . . . 5 . . . . . . . . . . . . . . . . . . . . . . . Intercept . | . . . . . . . . . . . . . . . . . . . . . . . . . . . . Searches Triggered 4 | . . . . . . . . . . . . . . . . . . 2 . . . . . . 1 . 1 Construction Impeded 1 | . . . . 1 . . . . . . . . . . . . . . . . . . . . . . . Haulers Reinforced . | . . . . . . . . . . . . . . . . . . . . . . . . . . . . Active Scanning Responses . | . . . . . . . . . . . . . . . . . . . . . . . . . . . . Cargo Convoy Interrupts . | . . . . . . . . . . . . . . . . . . . . . . . . . . . . Stealth | -11 -10 -10 -9 -9 -9 -9 -6 -6 -6 -6 -6 -5 -5 -5 -5 -5 -4 -4 -4 -4 -4 -3 -3 -3 -2 -2 -2 --------- Run | Yrd Mat Min Mat Sto Rec Scr Fac Low Low Zio Dee Pro Fac Upp Upp Zhi Pro Fac Upp Upp War Pro Res Qua Res Tes Frg Distress Signals 31 | . 2 . 4 5 . . 1 . . . . . . . . . . 3 . . . . 4 . . 1 11 Communications Jammed 6 | . . . . . . . . . . . . . . . . . 6 . . . . . . . . . . Distress Signals . | . . . . . . . . . . . . . . . . . . . . . . . . . . . . Times Spotted 599 | . 14 6 33 58 3 . 11 3 4 19 10 18 14 1 . . 22 41 . 13 . 9 32 32 12 13 231 Peak Tracking Total 19 | . 6 3 5 6 2 . 5 1 4 7 3 9 2 1 . . 5 10 . 4 . 3 13 17 8 5 19 Tactical Retreats 91 | . 1 2 2 1 . . 1 4 . 1 2 2 . . . . 4 9 . 5 . 1 5 7 3 4 37 Traps | -11 -10 -10 -9 -9 -9 -9 -6 -6 -6 -6 -6 -5 -5 -5 -5 -5 -4 -4 -4 -4 -4 -3 -3 -3 -2 -2 -2 ------- Run | Yrd Mat Min Mat Sto Rec Scr Fac Low Low Zio Dee Pro Fac Upp Upp Zhi Pro Fac Upp Upp War Pro Res Qua Res Tes Frg Traps Triggered 28 | . 2 . 1 6 . . . . . . . . . . . . . 1 . 1 1 . 1 1 . . 14 Indirectly . | . . . . . . . . . . . . . . . . . . . . . . . . . . . . Trap Hack Attempts . | . . . . . . . . . . . . . . . . . . . . . . . . . . . . Triggered . | . . . . . . . . . . . . . . . . . . . . . . . . . . . . Disarmed . | . . . . . . . . . . . . . . . . . . . . . . . . . . . . Reprogrammed . | . . . . . . . . . . . . . . . . . . . . . . . . . . . . Reused 4 | . . . . . . . . . . . . . . . . . . . . 4 . . . . . . . Traps Extracted . | . . . . . . . . . . . . . . . . . . . . . . . . . . . . Installed 7 | . . . . . . . . . . . . . . . . . . . . 7 . . . . . . . Triggered 3 | . . . . . . . . . . . . . . . . . . . . 3 . . . . . . . Most Traps Carried 2 | . . 2 2 1 1 1 . . . . . . . . . . . . . 1 . . . . . . . Machines | -11 -10 -10 -9 -9 -9 -9 -6 -6 -6 -6 -6 -5 -5 -5 -5 -5 -4 -4 -4 -4 -4 -3 -3 -3 -2 -2 -2 ---------- Run | Yrd Mat Min Mat Sto Rec Scr Fac Low Low Zio Dee Pro Fac Upp Upp Zhi Pro Fac Upp Upp War Pro Res Qua Res Tes Frg Machines Disabled 77 | . . . 2 2 . . 4 . 1 2 2 . . . . . . . . . 1 . 3 5 1 3 51 Max in Single Turn 4 | . . . 1 1 . . 2 . 1 2 1 . . . . . . . . . 1 . 1 1 1 1 4 Garrison Access 5 | . . . . . . . . . . . . . 2 . . . . 1 . . . . . . 1 . 1 Machines Repaired . | . . . . . . . . . . . . . . . . . . . . . . . . . . . . Machines Dismantled . | . . . . . . . . . . . . . . . . . . . . . . . . . . . . Machines Sabotaged . | . . . . . . . . . . . . . . . . . . . . . . . . . . . . Overloaded Fab Kills . | . . . . . . . . . . . . . . . . . . . . . . . . . . . . Hacking | -11 -10 -10 -9 -9 -9 -9 -6 -6 -6 -6 -6 -5 -5 -5 -5 -5 -4 -4 -4 -4 -4 -3 -3 -3 -2 -2 -2 --------- Run | Yrd Mat Min Mat Sto Rec Scr Fac Low Low Zio Dee Pro Fac Upp Upp Zhi Pro Fac Upp Upp War Pro Res Qua Res Tes Frg Machines Accessed 87 | . . 1 2 6 13 3 7 3 1 1 . . 4 2 2 4 . 5 1 1 4 . 8 4 4 1 10 Terminals 33 | . . 1 2 6 6 . . . . . . . . 1 . . . 1 . . . . 3 3 3 1 6 Fabricators . | . . . . . . . . . . . . . . . . . . . . . . . . . . . . Repair Stations 1 | . . . . . . . . . . . . . . . . . . . . . . . 1 . . . . Recycling Units 25 | . . . . . 7 . 5 . . . . . 2 . . . . 3 . . . . 4 . 1 . 3 Scanalyzers . | . . . . . . . . . . . . . . . . . . . . . . . . . . . . Garrison Access 7 | . . . . . . . 2 . . . . . 2 . . . . 1 . . . . . 1 . . 1 Total Hacks 217 | . . 4 3 18 25 30 12 7 3 6 . . 8 2 4 17 . 7 1 1 10 . 18 12 11 3 15 Successful 150 | . . 3 1 11 20 30 4 7 3 6 . . 3 2 4 17 . 4 1 1 10 . 4 6 4 3 6 Failed 67 | . . 1 2 7 5 . 8 . . . . . 5 . . . . 3 . . . . 14 6 7 . 9 Catastrophic 11 | . . . 1 1 . . 2 . . . . . 1 . . . . 1 . . . . . 1 2 . 2 Database Lockouts . | . . . . . . . . . . . . . . . . . . . . . . . . . . . . Manual 84 | . . . 1 4 25 . 10 . . 4 . . 6 . . . . 6 . . . . 9 5 4 . 10 Terminals 80 | . . 4 3 18 16 . . . . . . . . 1 . . . 1 . . . . 6 9 10 3 9 Fabricators . | . . . . . . . . . . . . . . . . . . . . . . . . . . . . Repair Stations 3 | . . . . . . . . . . . . . . . . . . . . . . . 3 . . . . Recycling Units 45 | . . . . . 9 . 10 . . . . . 6 . . . . 5 . . . . 9 . 1 . 5 Scanalyzers . | . . . . . . . . . . . . . . . . . . . . . . . . . . . . Garrison Access 9 | . . . . . . . 2 . . . . . 2 . . . . 1 . . . . . 3 . . 1 Terminal Hacks 104 | . . 3 1 8 . 30 . 7 3 6 . . . 2 4 17 . . 1 1 10 . 1 3 2 3 2 Record 49 | . . 2 . . . 24 . 5 3 . . . . 2 3 5 . . . . 4 . . . . . 1 Part Schematic 10 | . . . . . . . . . . 6 . . . . . 4 . . . . . . . . . . . Robot Analysis 10 | . . . . . . 6 . . . . . . . . . 4 . . . . . . . . . . . Prototype ID Bank 9 | . . . . . . . . . . . . . . . . 4 . . . . 4 . . . . 1 . Open Door 11 | . . . . 2 . . . 2 . . . . . . 1 . . . 1 1 2 . 1 1 . . . Branch Access Points 2 | . . . 1 . . . . . . . . . . . . . . . . . . . . . 1 . . Emergency Access Points 1 | . . . . . . . . . . . . . . . . . . . . . . . . . . 1 . Dispatch Records 1 | . . . . . . . . . . . . . . . . . . . . . . . . 1 . . . Maintenance Status 1 | . . . . . . . . . . . . . . . . . . . . . . . . 1 . . . Security Status 1 | . . . . 1 . . . . . . . . . . . . . . . . . . . . . . . Patrol Status 1 | . . . . 1 . . . . . . . . . . . . . . . . . . . . . . . Transport Status 1 | . . . . 1 . . . . . . . . . . . . . . . . . . . . . . . Hauler Manifests 1 | . . . . 1 . . . . . . . . . . . . . . . . . . . . . . . Registered Components 2 | . . . . 1 . . . . . . . . . . . . . . . . . . . . 1 . . Registered Prototypes 1 | . . . . . . . . . . . . . . . . . . . . . . . . . . 1 . Zone Layout 2 | . . 1 . 1 . . . . . . . . . . . . . . . . . . . . . . . Proto ID Catalog 1 | . . . . . . . . . . . . . . . . . . . . . . . . . . . 1 Fabricator Hacks . | . . . . . . . . . . . . . . . . . . . . . . . . . . . . Repair Station Hacks 1 | . . . . . . . . . . . . . . . . . . . . . . . 1 . . . . Scan Component 1 | . . . . . . . . . . . . . . . . . . . . . . . 1 . . . . Recycling Unit Hacks . | . . . . . . . . . . . . . . . . . . . . . . . . . . . . Scanalyzer . | . . . . . . . . . . . . . . . . . . . . . . . . . . . . Garrison Access Hacks 4 | . . . . . . . . . . . . . 2 . . . . 1 . . . . . . . . 1 Seal Access 4 | . . . . . . . . . . . . . 2 . . . . 1 . . . . . . . . 1 Unauthorized Hacks 40 | . . . . 3 19 . 4 . . . . . 1 . . . . 3 . . . . 2 3 2 . 3 Terminals 20 | . . . . 3 12 . . . . . . . . . . . . . . . . . . 3 1 . 1 Botnet 13 | . . . . 3 6 . . . . . . . . . . . . . . . . . . 2 1 . 1 Skim 7 | . . . . . 6 . . . . . . . . . . . . . . . . . . 1 . . . Fabricators . | . . . . . . . . . . . . . . . . . . . . . . . . . . . . Repair Stations . | . . . . . . . . . . . . . . . . . . . . . . . . . . . . Recycling Units 20 | . . . . . 7 . 4 . . . . . 1 . . . . 3 . . . . 2 . 1 . 2 Tunnel 7 | . . . . . 7 . . . . . . . . . . . . . . . . . . . . . . Fedlink 12 | . . . . . . . 4 . . . . . 1 . . . . 3 . . . . 2 . 1 . 1 Scraphulk 1 | . . . . . . . . . . . . . . . . . . . . . . . . . . . 1 Scanalyzers . | . . . . . . . . . . . . . . . . . . . . . . . . . . . . Garrison Access . | . . . . . . . . . . . . . . . . . . . . . . . . . . . . Data Cores Recovered 5 | . . . . . . . . . . . . . . . . . . 1 . . . . . 1 1 1 1 Used 1 | . . . . . . . . . . . . . . . . . . . . . . . . . . 1 . Hacking Detections 35 | . . . 1 5 3 . 4 . . . . . 2 . . . . 1 . . . . 6 3 3 1 6 Full Trace Events 7 | . . . 1 1 1 . 1 . . . . . . . . . . . . . . . 2 . . . 1 Feedback Events 1 | . . . . . . . 1 . . . . . . . . . . . . . . . . . . . . Corruption 1 | . . . . . . . 1 . . . . . . . . . . . . . . . . . . . . Feedback Blocked . | . . . . . . . . . . . . . . . . . . . . . . . . . . . . Robot Schematics Acquired 3 | . . . . . . . . . . . . . . . . . . . . . . . . . . . 3 Robots Built . | . . . . . . . . . . . . . . . . . . . . . . . . . . . . Authchips . | . . . . . . . . . . . . . . . . . . . . . . . . . . . . Time . | . . . . . . . . . . . . . . . . . . . . . . . . . . . . Total Robot Build Rating . | . . . . . . . . . . . . . . . . . . . . . . . . . . . . Part Schematics Acquired 11 | . . . . . . . . . . 6 . . . . . 4 . . . . . . . . . . 1 Parts Built . | . . . . . . . . . . . . . . . . . . . . . . . . . . . . Authchips . | . . . . . . . . . . . . . . . . . . . . . . . . . . . . Time . | . . . . . . . . . . . . . . . . . . . . . . . . . . . . Total Part Build Rating . | . . . . . . . . . . . . . . . . . . . . . . . . . . . . Part Studies Acquired . | . . . . . . . . . . . . . . . . . . . . . . . . . . . . Parts Repaired . | . . . . . . . . . . . . . . . . . . . . . . . . . . . . Time . | . . . . . . . . . . . . . . . . . . . . . . . . . . . . Parts Recycled . | . . . . . . . . . . . . . . . . . . . . . . . . . . . . Recycled Matter . | . . . . . . . . . . . . . . . . . . . . . . . . . . . . Retrieved Matter . | . . . . . . . . . . . . . . . . . . . . . . . . . . . . Retrieved Components . | . . . . . . . . . . . . . . . . . . . . . . . . . . . . Parts Scanalyzed . | . . . . . . . . . . . . . . . . . . . . . . . . . . . . Part Schematics Acquired . | . . . . . . . . . . . . . . . . . . . . . . . . . . . . Parts Damaged . | . . . . . . . . . . . . . . . . . . . . . . . . . . . . Bothacking | -11 -10 -10 -9 -9 -9 -9 -6 -6 -6 -6 -6 -5 -5 -5 -5 -5 -4 -4 -4 -4 -4 -3 -3 -3 -2 -2 -2 ------------ Run | Yrd Mat Min Mat Sto Rec Scr Fac Low Low Zio Dee Pro Fac Upp Upp Zhi Pro Fac Upp Upp War Pro Res Qua Res Tes Frg Used RIF Installer . | . . . . . . . . . . . . . . . . . . . . . . . . . . . . Robots Hacked . | . . . . . . . . . . . . . . . . . . . . . . . . . . . . Non-combat . | . . . . . . . . . . . . . . . . . . . . . . . . . . . . Combat . | . . . . . . . . . . . . . . . . . . . . . . . . . . . . Robot Hacks Applied . | . . . . . . . . . . . . . . . . . . . . . . . . . . . . Relay Couplers Released 4 | . . . . . . . . . . . . . 3 . . . . . . . . . . . 1 . . Machine Destruction 1 | . . . . . . . . . . . . . . . . . . . . . . . . . 1 . . Programmers 3 | . . . . . . . . . . . . . 3 . . . . . . . . . . . . . . Fabnet Peak Effective % . | . . . . . . . . . . . . . . . . . . . . . . . . . . . . Robots Rewired 4 | . . . . . . . . . . . . . . . . . . 1 . 3 . . . . . . . Allies Hacked 1 | . . . . . . . . . . . . . . . . . . 1 . . . . . . . . . Hacks Repelled . | . . . . . . . . . . . . . . . . . . . . . . . . . . . . Allies | -11 -10 -10 -9 -9 -9 -9 -6 -6 -6 -6 -6 -5 -5 -5 -5 -5 -4 -4 -4 -4 -4 -3 -3 -3 -2 -2 -2 -------- Run | Yrd Mat Min Mat Sto Rec Scr Fac Low Low Zio Dee Pro Fac Upp Upp Zhi Pro Fac Upp Upp War Pro Res Qua Res Tes Frg Total Allies 22 | . . 4 . 10 . 1 . . 2 . . . . . . . . 1 . 3 . . . . . . 1 Largest Group 10 | . . 3 2 10 . 1 1 . 2 . . . . . . . . 1 . 3 . . . . . . 1 Highest-Rated Group 141 | . . 55 24 88 . 74 74 . 40 . . . . . . . . 42 . 141 . . . . . . 139 Highest-Rated Ally 139 | . . 31 16 16 . 74 74 . 20 . . . . . . . . 42 . 47 . . . . . . 139 Total Orders 1 | . . . . . . 1 . . . . . . . . . . . . . . . . . . . . . STAY 1 | . . . . . . 1 . . . . . . . . . . . . . . . . . . . . . Ally Attacks 146 | . . 17 33 55 . . 6 . 5 . . . . . . . . 3 . 5 . . . . . . 22 Total Damage 3228 | . . 198 299 524 . . 437 . 157 . . . . . . . . 87 . 159 . . . . . . 1367 Kills 28 | . . 4 7 4 . . 3 . 3 . . . . . . . . . . . . . . . . . 7 Allies Corrupted . | . . . . . . . . . . . . . . . . . . . . . . . . . . . . Allies Melted 7 | . . . . . . . 1 . . . . . . . . . . . . . . . . . . . 6 Intel | -11 -10 -10 -9 -9 -9 -9 -6 -6 -6 -6 -6 -5 -5 -5 -5 -5 -4 -4 -4 -4 -4 -3 -3 -3 -2 -2 -2 ------- Run | Yrd Mat Min Mat Sto Rec Scr Fac Low Low Zio Dee Pro Fac Upp Upp Zhi Pro Fac Upp Upp War Pro Res Qua Res Tes Frg Active Infowar (turns) 13801 | . . . 495 . . . 975 657 958 1336 838 461 1290 493 578 210 486 449 286 757 226 208 603 637 282 235 1341 Optics 2904 | . . . . . . . . . . . . . . . . . . . . 312 226 208 603 637 282 235 401 Sensors 4138 | . . . 495 . . . 975 657 204 . . . . . . . . . . . . . 239 637 282 235 414 A.S.S. 906 | . . . . . . . . . . . . . . . . . . . . . . . . . . . 906 IFF 1840 | . . . . . . . . . . . . . . . . . . 263 286 757 226 208 100 . . . . Terrain 1661 | . . . . . . . . . . . . . . . . . . 449 286 757 169 . . . . . . Seismic 5171 | . . . . . . . . . 754 1336 838 461 546 437 578 210 11 . . . . . . . . . . Decoding 6408 | . . . . . . . . . . . . . 1201 493 578 210 486 . 93 757 226 208 603 637 282 235 399 Machine Analysis 1244 | . . . . . . . . . . . . . . . . . . . . . . . . 467 282 235 260 Triangulation 874 | . . . . . . . . . . . . . . . . . . 204 286 384 . . . . . . . Cloaking 21 | . . . . . . . . . . . . . . . . . . . . . . . . . . . 21 Jamming 595 | . . . . . . . . . . . . . . . 118 121 356 . . . . . . . . . . Robot Analysis Total 10 | . . . . . . 6 . . . . . . . . . 4 . . . . . . . . . . . Derelict Logs Recovered 13 | . . 2 . . . . . . 2 2 . 1 . 1 2 . 2 . . 1 . . . . . . . Drone Launches . | . . . . . . . . . . . . . . . . . . . . . . . . . . . . Drone Recoveries . | . . . . . . . . . . . . . . . . . . . . . . . . . . . . Decoded 0b10 Intel 193 | . . . . . . . . . . . . . 56 . . . . . . . . . 58 27 19 14 19 Traps 9 | . . . . . . . . . . . . . . . . . . . . . . . 8 1 . . . Emergency Access 5 | . . . . . . . . . . . . . . . . . . . . . . . 3 2 . . . Items 179 | . . . . . . . . . . . . . 56 . . . . . . . . . 47 24 19 14 19 Exploration | -11 -10 -10 -9 -9 -9 -9 -6 -6 -6 -6 -6 -5 -5 -5 -5 -5 -4 -4 -4 -4 -4 -3 -3 -3 -2 -2 -2 ------------- Run | Yrd Mat Min Mat Sto Rec Scr Fac Low Low Zio Dee Pro Fac Upp Upp Zhi Pro Fac Upp Upp War Pro Res Qua Res Tes Frg Turns Passed 24581 | 20 352 879 1138 1604 775 3511 1024 657 959 1336 838 461 1290 493 578 210 632 560 286 757 226 208 603 637 282 235 4030 Spaces Moved 27479 | 17 199 622 673 961 577 2787 755 484 681 996 609 297 612 367 434 159 506 1123 737 1096 764 550 1296 1362 742 589 7484 Core 352 | . . . . . . . . . . . . . . . . . 204 148 . . . . . . . . . Treads . | . . . . . . . . . . . . . . . . . . . . . . . . . . . . Legs 11561 | 17 199 622 673 961 577 2787 755 484 681 996 609 297 612 367 434 159 302 29 . . . . . . . . . Wheels . | . . . . . . . . . . . . . . . . . . . . . . . . . . . . Hover 5458 | . . . . . . . . . . . . . . . . . . . . . . . . . . . 5458 Flight 10108 | . . . . . . . . . . . . . . . . . . 946 737 1096 764 550 1296 1362 742 589 2026 Fastest Speed 20 | 120 120 120 120 120 120 120 120 122 127 123 125 125 118 118 120 120 50 31 34 26 21 20 20 28 26 24 24 Average Speed 68 | 120 120 120 120 120 120 120 120 125 127 127 128 125 123 118 120 120 99 36 34 30 24 20 23 28 27 24 31 Slowest Speed 260 | 120 190 120 190 260 120 120 122 127 127 133 133 126 130 120 120 120 190 120 34 109 26 23 28 28 28 26 105 Overloaded Moves . | . . . . . . . . . . . . . . . . . . . . . . . . . . . . Propulsion Burnouts . | . . . . . . . . . . . . . . . . . . . . . . . . . . . . Robots Hopped 43 | . . . . 2 . . . . . . . . . . . . . 7 . . . . 9 8 12 1 4 Potential Cave-ins 12 | . . . . . . . . . 2 . . . . . . . . . . . . 2 . . . . 8 Cave-ins Triggered 1 | . . . . . . . . . . . . . . . . . . . . . . . . . . . 1 Teleports 2 | . . . . . . . . . . . . . . . . . . 1 . . . . . . . . 1 Exploration Rate (%) 63 | 3 37 99 75 86 90 86 22 50 82 85 71 49 14 58 64 61 60 32 77 71 90 66 38 97 29 81 91 Regions Visited 27 Branch Regions 20 Pre-discovered Areas 19 | . . 1 . . 8 4 1 1 . . . . . . . 3 . . . 1 . . . . . . . Known Exits Taken 16 | . . . 1 . 1 1 1 1 . . . 1 1 1 1 . 1 1 . . . 1 1 1 1 1 . Unknown Exits Taken 11 | 1 1 1 . 1 . . . . 1 1 1 . . . . 1 . . 1 1 1 . . . . . . Scrap Searched 29 | . . 1 . . . 2 . 4 2 3 . 1 . 3 3 . 1 . 2 3 . 4 . . . . . Spaces Dug 180 | . . . . . . . 18 . 4 . . 3 22 . 2 . 5 11 5 9 . 2 31 30 17 14 7 Terrain Destroyed 1189 | . . . 79 62 . . 45 12 17 1 34 11 96 11 5 . 99 11 5 9 . 104 46 30 17 14 481 Melee 139 | . . . . . . . . . . . . . 15 . . . . 11 5 9 . 2 31 30 17 14 5 Projectile 398 | . . . . . . . 45 12 17 . 34 11 29 11 5 . 15 . . . . 2 . . . . 217 AOE 652 | . . . 79 62 . . . . . 1 . . 52 . . . 84 . . . . 100 15 . . . 259 Terrain Rammed . | . . . . . . . . . . . . . . . . . . . . . . . . . . . . Walls Destroyed . | . . . . . . . . . . . . . . . . . . . . . . . . . . . . Machines Disabled . | . . . . . . . . . . . . . . . . . . . . . . . . . . . . Actions | -11 -10 -10 -9 -9 -9 -9 -6 -6 -6 -6 -6 -5 -5 -5 -5 -5 -4 -4 -4 -4 -4 -3 -3 -3 -2 -2 -2 --------- Run | Yrd Mat Min Mat Sto Rec Scr Fac Low Low Zio Dee Pro Fac Upp Upp Zhi Pro Fac Upp Upp War Pro Res Qua Res Tes Frg Total 31492 | 16 254 725 857 1199 624 2969 839 523 761 1043 648 353 982 404 488 177 588 1211 761 1486 798 612 1491 1529 763 637 8754 Wait 1833 | . 3 69 40 35 14 110 23 25 57 6 6 14 200 25 45 . 23 13 7 309 18 17 97 100 3 12 562 Move 27367 | 16 198 621 672 956 576 2786 754 483 680 995 608 296 611 366 433 158 505 1111 736 1095 763 549 1277 1344 719 586 7473 Hop 37 | . . . . 2 . . . . . . . . . . . . . 4 . . . . 9 8 9 1 4 Pick Up 171 | . 3 3 7 5 1 31 6 . 1 3 4 2 11 . 3 2 3 2 1 9 3 3 4 6 . 1 57 Fast Attach 171 | . 2 1 6 13 . 1 6 . 1 1 1 4 5 3 1 5 9 25 3 6 3 7 10 3 3 5 47 Attach 73 | . . . 4 2 . . 1 . 1 1 . . 10 . . . 8 10 1 . . 4 2 2 . . 27 Detach 66 | . . . 3 1 . 2 . . 1 1 . . 6 . . . 6 7 4 . 1 1 1 2 . . 30 Swap 211 | . 6 4 27 32 8 3 9 5 2 12 5 6 10 1 . 5 . . . 2 2 3 12 . 3 7 47 Drop 271 | . 8 6 16 17 5 33 7 2 2 5 5 3 8 . 4 7 7 9 3 12 5 10 19 6 4 5 63 Fire 675 | . 30 15 78 98 17 . 29 8 16 18 19 28 101 9 2 . 27 . . . . 5 2 . . . 173 Melee 372 | . . . . 10 . . . . . . . . 17 . . . . 26 6 15 3 13 45 41 21 20 155 Ram 1 | . . . . . . . . . . . . . . . . . . . . . . . . . . . 1 Kick 43 | . 4 6 4 18 3 . 4 . . 1 . . 3 . . . . . . . . . . . . . . Crush . | . . . . . . . . . . . . . . . . . . . . . . . . . . . . Escape Stasis 114 | . . . . 10 . . . . . . . . . . . . . . . . . . 13 17 1 . 73 Rewire 40 | . . . . . . 3 . . . . . . . . . . . 4 . 31 . . . . . . 2 Trap 7 | . . . . . . . . . . . . . . . . . . . . 7 . . . . . . . Miscellaneous 40 | . . . . . . . . . . . . . . . . . . . . . . . . . . . 40 Route ------- -11/Scrapyard -10/Materials (discovered 2 exits: *Mat / *Min) -10/Mines (discovered 2 exits: *Mat x2) -9/Materials (discovered 7 exits: [*Mat x3] / *Min x2 / *Sto x2) -9/Storage (discovered 2 exits: [*Mat] / *Rec) -9/Recycling (discovered 2 exits: [*Fac] / *Scr) -9/Scraptown (discovered 2 exits: *Fac x2) -6/Factory (discovered 5 exits: *Fac x3 / *Low x2) -6/Lower Caves -6/Lower Caves -6/Zion (discovered 2 exits: [*Dee] / [*Pro]) -6/Deep Caves -5/Proximity Caves -5/Factory (discovered 4 exits: *Fac / *Upp x2 / [*Ext]) -5/Upper Caves -5/Upper Caves (discovered 2 exits: Fac / *Zhi) -5/Zhirov -4/Proximity Caves -4/Factory (discovered 5 exits: *Res x3 / *Upp x2) -4/Upper Caves -4/Upper Caves (discovered 2 exits: *Res / *War) -4/Warlord -3/Proximity Caves -3/Research -3/Quarantine -2/Research (discovered 5 exits: *Acc x3 / *Tes x2) -2/Testing (discovered 3 exits: *Acc / [*Sec] / *Frg) -2/Protoforge 0bPrime History --------- Turn | Location | Event 1 | -11/Scrapyard | Discovered new exit (range 3) 21 | -11/Scrapyard | Entered Materials 229 | -10/Materials | Discovered new exit (range 15) 301 | -10/Materials | Build established: Mutant 342 | -10/Materials | Discovered new exit (range 15) 373 | -10/Materials | Entered Mines 375 | -10/Mines | Assisted by bots powering up and referring to "LRC-V3" 376 | -10/Mines | Learned location of Storage (-9) 537 | -10/Mines | Discovered new exit (range 5) 721 | -10/Mines | Discovered new exit (range 9) 729 | -10/Mines | A weapon hastily lodged in a ceiling crevice suddenly fell to the ground 941 | -10/Mines | Received a Mining Laser from a helpful Derelict 995 | -10/Mines | Found a hidden stash of uninstalled traps 1252 | -10/Mines | Entered Materials 1252 | -9/Materials | Accompanied by 2 allies 1252 | -9/Materials | Evolved 2 slots: Propulsion x1, Utility x1 1253 | -9/Materials | Identified exit to Mines 1479 | -9/Materials | Discovered new exit (range 4) 1586 | -9/Materials | Identified exit to Storage 1946 | -9/Materials | Discovered new exit (range 16) 2363 | -9/Materials | Discovered new exit (range 16) 2390 | -9/Materials | Entered Storage 2473 | -9/Storage | Assisted by bots powering up and referring to "LRC-V3" 2571 | -9/Storage | Lost 3 allies 2577 | -9/Storage | Garrison activated, responded to threat 2717 | -9/Storage | Lost 7 allies 2790 | -9/Storage | First assault squad dispatched 2839 | -9/Storage | Garrison activated, responded to threat 2935 | -9/Storage | Build established: Scavenger-Mutant 3417 | -9/Storage | Discovered new exit (range 8) 3440 | -9/Storage | Garrison activated, responded to threat 3690 | -9/Storage | Used back door to open Recycling access 3690 | -9/Storage | Discovered new exit (range 4) 3770 | -9/Storage | Core integrity fell below 50% 3994 | -9/Storage | Entered Recycling 4069 | -9/Recycling | Build established: Mutant 4125 | -9/Recycling | Discovered new exit (range 6) 4421 | -9/Recycling | Build established: Scavenger-Mutant 4492 | -9/Recycling | Learned Storage security intel 4529 | -9/Recycling | Learned location of 1 exit from Storage 4554 | -9/Recycling | Learned location of 2 exits from Materials 4570 | -9/Recycling | Learned location of Mines (-8) 4577 | -9/Recycling | Learned Materials stockpile data 4578 | -9/Recycling | Identified exit to Scraptown 4586 | -9/Recycling | Learned Storage stockpile data 4605 | -9/Recycling | Learned Materials emergency access door positions 4740 | -9/Recycling | Scanned before Scraplab entrance 4757 | -9/Recycling | Entered Scraplab 4769 | -9/Recycling | Entered Scraptown 4942 | -9/Scraptown | Discovered new exit (range 13) 5024 | -9/Scraptown | Visited Assassins FH 5055 | -9/Scraptown | Visited Comm Corps 5063 | -9/Scraptown | Visited The Evicted 5080 | -9/Scraptown | Visited IN-MT5's Study 5324 | -9/Scraptown | Visited SPCMW 5331 | -9/Scraptown | Visited Symbiants 5338 | -9/Scraptown | Visited Fellowship of the Rings 5369 | -9/Scraptown | Visited UFD Registry 5369 | -9/Scraptown | Registered with UFD as "Protongrid" 5397 | -9/Scraptown | Visited Junk Repository 5416 | -9/Scraptown | Visited Curators Association 5433 | -9/Scraptown | Visited Analyses Database 5465 | -9/Scraptown | Visited Science Guys 5481 | -9/Scraptown | Visited Research Penetration Think Tank 5506 | -9/Scraptown | Visited Scrap Suit Storage 5526 | -9/Scraptown | Visited Scrapoid Pod Storage 5546 | -9/Scraptown | Visited Botcube Research 5550 | -9/Scraptown | Found Lrg. Botcube 5573 | -9/Scraptown | Visited Modified Component R&D 6100 | -9/Scraptown | Found Scrap Suit 6485 | -9/Scraptown | Build established: Scavenger-Scrapper 6705 | -9/Scraptown | Visited Cartography Club 6773 | -9/Scraptown | Learned location of Proximity Caves (-5) 6773 | -9/Scraptown | Learned location of Zion (-6) 6773 | -9/Scraptown | Learned 8 Materials zone layouts 6773 | -9/Scraptown | Learned location of Archives (-5) 6773 | -9/Scraptown | Learned 12 Materials zone layouts 6773 | -9/Scraptown | Learned 8 Factory zone layouts 6773 | -9/Scraptown | Learned 16 Factory zone layouts 6773 | -9/Scraptown | Learned 8 Access zone layouts 6773 | -9/Scraptown | Learned 4 Recycling zone layouts 6773 | -9/Scraptown | Learned 20 Lower Caves zone layouts 6773 | -9/Scraptown | Learned 8 Upper Caves zone layouts 6773 | -9/Scraptown | Learned 12 Proximity Caves zone layouts 6773 | -9/Scraptown | Learned Factory emergency access door positions 6773 | -9/Scraptown | Learned location of 3 exits from Factory 6773 | -9/Scraptown | Learned location of 2 exits from Upper Caves 6773 | -9/Scraptown | Identified exit to Factory 7891 | -9/Scraptown | Found Scrap Suit 7972 | -9/Scraptown | Lrg. Botcube activated 8008 | -9/Scraptown | Lrg. Botcube completed mutation into treaded form, armed with 3 guns, 1 cannon. 8168 | -9/Scraptown | Found Scrap Suit 8175 | -9/Scraptown | Found Scrap Suit 8218 | -9/Scraptown | Met Optimus 8218 | -9/Scraptown | Accepted into 0bPrime 8280 | -9/Scraptown | Entered Factory 8280 | -6/Factory | Accompanied by 1 ally 8280 | -6/Factory | Evolved 6 slots: Propulsion x1, Utility x5 8281 | -6/Factory | Identified exit to Factory 8282 | -6/Factory | Identified exit to Lower Caves 8585 | -6/Factory | Build established: Scavenger-Mutant 8654 | -6/Factory | Loaded intel: 8 recycling unit locations 8909 | -6/Factory | Learned location of Protoforge (-2) 9304 | -6/Factory | Entered Lower Caves 9305 | -6/Lower Caves | Identified exit to Lower Caves 9321 | -6/Lower Caves | Build established: Mutant 9462 | -6/Lower Caves | Entered an active Warlord outpost 9480 | -6/Lower Caves | Learned Factory emergency access door positions 9480 | -6/Lower Caves | Learned Armory security intel 9480 | -6/Lower Caves | Learned Factory garrison access intel 9480 | -6/Lower Caves | Learned Extension garrison access intel 9680 | -6/Lower Caves | Encountered a Warlord checkpoint 9961 | -6/Lower Caves | Entered another Lower Caves area 10109 | -6/Lower Caves | Learned Factory trap positions 10475 | -6/Lower Caves | Build established: Derelict-Mutant 10541 | -6/Lower Caves | Learned Factory interactive machine intel 10715 | -6/Lower Caves | Discovered new exit (range 14) 10774 | -6/Lower Caves | A Commander dispatched an escort 10920 | -6/Lower Caves | Entered Zion 10920 | -6/Zion | Accompanied by 1 ally 10921 | -6/Zion | Commander's escort returned to base 11012 | -6/Zion | Received a visual enhancement algorithm 11064 | -6/Zion | Discovered new exit (range 16) 11233 | -6/Zion | Learned 4 Factory zone layouts 11768 | -6/Zion | Turned away by Imprinter 12035 | -6/Zion | Attacked by Zionites 12045 | -6/Zion | Destroyed Imprinter 12049 | -6/Zion | Extracted access codes from Imprinter's data core 12154 | -6/Zion | Opened final containment barrier to the Deep Caves 12187 | -6/Zion | System corruption reached 10% 12199 | -6/Zion | Discovered new exit (range 5) 12202 | -6/Zion | Saw the warning signs outside the Deep Caves entrance 12256 | -6/Zion | Entered Deep Caves 12487 | -6/Deep Caves | Z-Facility disabled 12877 | -6/Deep Caves | Discovered new exit (range 6) 12878 | -6/Deep Caves | Build established: Mutant 13094 | -6/Deep Caves | Entered Proximity Caves 13146 | -5/Proximity Caves | Lost 3 parts (1n2w) 13404 | -5/Proximity Caves | Build established: Scavenger-Mutant 13527 | -5/Proximity Caves | Attracted the attention of an 0b10 outpost 13539 | -5/Proximity Caves | Core integrity fell below 50% 13541 | -5/Proximity Caves | Learned 4 Factory zone layouts 13551 | -5/Proximity Caves | Discovered exit to Factory (range 5) 13555 | -5/Proximity Caves | Entered Factory 13555 | -5/Factory | Evolved 2 slots: Propulsion x2 13556 | -5/Factory | Identified exit to Upper Caves 13558 | -5/Factory | Loaded intel: 126 trap records 13560 | -5/Factory | Loaded intel: 55 interactive machine locations 13561 | -5/Factory | Loaded intel: 4 garrison access locations 13825 | -5/Factory | Discovered new exit (range 6) 13902 | -5/Factory | Loaded intel: 8 recycling unit locations 14232 | -5/Factory | Lost 3 parts (2n1u) 14310 | -5/Factory | System corruption reached 10% 14460 | -5/Factory | Discovered new exit (range 8) 14845 | -5/Factory | Entered Upper Caves 14846 | -5/Upper Caves | Identified exit to Upper Caves 15089 | -5/Upper Caves | Learned location of 1 exit from Factory 15145 | -5/Upper Caves | Attracted the attention of an 0b10 checkpoint 15228 | -5/Upper Caves | Entered a destroyed Warlord outpost 15333 | -5/Upper Caves | Build established: Derelict-Mutant 15338 | -5/Upper Caves | Entered another Upper Caves area 15339 | -5/Upper Caves | Identified exit to Zhirov 15339 | -5/Upper Caves | Identified exit to Factory 15570 | -5/Upper Caves | Learned 4 Factory zone layouts 15654 | -5/Upper Caves | Entered an active Warlord outpost 15673 | -5/Upper Caves | Learned 8 Factory zone layouts 15673 | -5/Upper Caves | Learned Factory emergency access door positions 15701 | -5/Upper Caves | Learned Factory terminal intel 15812 | -5/Upper Caves | Encountered a Warlord checkpoint 15916 | -5/Upper Caves | Entered Zhirov 15918 | -5/Zhirov | Discovered new exit (range 3) 15939 | -5/Zhirov | Met Zhirov 15965 | -5/Zhirov | Learned location of Quarantine (-3) 15965 | -5/Zhirov | Learned location of Testing (-2) 15965 | -5/Zhirov | Learned location of Command (-1) 15980 | -5/Zhirov | Zhirov requested help retrieving the SGEMP Prototype 16001 | -5/Zhirov | Found Alien Artifact 16015 | -5/Zhirov | Found Alien Artifact 16015 | -5/Zhirov | Identified Integrated Dissipator 16015 | -5/Zhirov | Installed Integrated Dissipator, increased core heat dissipation (+20) 16126 | -5/Zhirov | Entered Proximity Caves 16244 | -4/Proximity Caves | Spotter reported a threat 16248 | -4/Proximity Caves | Spotter reported a threat 16335 | -4/Proximity Caves | Spotter reported a threat 16403 | -4/Proximity Caves | Spotter reported a threat 16422 | -4/Proximity Caves | Build established: Mutant 16428 | -4/Proximity Caves | Spotter reported a threat 16452 | -4/Proximity Caves | Learned Research machine intel 16456 | -4/Proximity Caves | Spotter reported a threat 16496 | -4/Proximity Caves | Spotter reported a threat 16552 | -4/Proximity Caves | Lost 6 parts (3n1u2w) 16607 | -4/Proximity Caves | Attracted the attention of an 0b10 checkpoint 16612 | -4/Proximity Caves | Released all parts (9) 16622 | -4/Proximity Caves | Core integrity fell below 50% 16758 | -4/Proximity Caves | Entered Factory 16758 | -4/Factory | Evolved 2 slots: Power x1, Propulsion x1 16759 | -4/Factory | Identified exit to Research 16760 | -4/Factory | Identified exit to Upper Caves 16762 | -4/Factory | Loaded intel: 26 terminal locations 16907 | -4/Factory | Identified Transdimensional Reconstructor 16907 | -4/Factory | Warped through subspace 16978 | -4/Factory | Spotted B-86 Titan 17008 | -4/Factory | Search patrols dispatched 17064 | -4/Factory | Spotted B-86 Titan 17067 | -4/Factory | Loaded intel: 8 recycling unit locations 17114 | -4/Factory | Build established: Sprinter 17152 | -4/Factory | Lost 3 parts (3u) 17258 | -4/Factory | Search patrols dispatched 17318 | -4/Factory | Discovered exit to Research (range 11) 17318 | -4/Factory | Entered Upper Caves 17328 | -4/Upper Caves | Spotted B-86 Titan 17500 | -4/Upper Caves | Build established: Gladiator 17575 | -4/Upper Caves | Discovered new exit (range 12) 17604 | -4/Upper Caves | Entered another Upper Caves area 17757 | -4/Upper Caves | Discovered exit to Research (range 14) 17908 | -4/Upper Caves | System corruption reached 10% 17991 | -4/Upper Caves | Attacked by a delusional Derelict stockpiling Unaware 18070 | -4/Upper Caves | Encountered a Warlord checkpoint 18219 | -4/Upper Caves | Lost 3 allies 18348 | -4/Upper Caves | Discovered new exit (range 17) 18361 | -4/Upper Caves | Entered Warlord 18367 | -4/Warlord | Build established: Derelict-Scout 18374 | -4/Warlord | System corruption cleaned by Quarantine Array 18474 | -4/Warlord | Found Prototype Special Weapon 18474 | -4/Warlord | Identified RU-N14's Throwing Claymores v3 18480 | -4/Warlord | Found RU-N14's Throwing Claymores v3 18481 | -4/Warlord | Found RU-N14's Throwing Claymores v3 18527 | -4/Warlord | Found Prototype Processor 18527 | -4/Warlord | Identified Exp. Targeting Computer 18540 | -4/Warlord | Visited the Vortex Lab 18552 | -4/Warlord | Warlord's base attacked by MAIN.C 18581 | -4/Warlord | Opened side exit 18586 | -4/Warlord | Discovered new exit (range 9) 18587 | -4/Warlord | Entered Proximity Caves 18773 | -3/Proximity Caves | Spotted B-86 Titan 18794 | -3/Proximity Caves | Discovered exit to Research (range 4) 18795 | -3/Proximity Caves | Entered Research 18795 | -3/Research | Evolved 2 slots: Propulsion x1, Utility x1 18796 | -3/Research | Loaded intel: 135 machine locations 19089 | -3/Research | Build established: Derelict-Sprinter 19142 | -3/Research | Loaded intel: 5 recycling unit locations 19347 | -3/Research | Spotted B-86 Titan 19397 | -3/Research | Discovered new exit (range 6) 19398 | -3/Research | Identified exit to Quarantine 19398 | -3/Research | Entered Quarantine 19432 | -3/Quarantine | Found Alien Artifact 19453 | -3/Quarantine | Build established: Derelict-Scout 19463 | -3/Quarantine | Discovered new exit (range 4) 19466 | -3/Quarantine | Identified exit to Research 19513 | -3/Quarantine | Found Alien Impact Weapon 19513 | -3/Quarantine | Identified Core Stripper 19570 | -3/Quarantine | Found Unknown Launcher 19593 | -3/Quarantine | Found Alien Slashing Weapon 19593 | -3/Quarantine | Identified Sigix Broadsword 19660 | -3/Quarantine | Found Alien Energy Cannon 19867 | -3/Quarantine | Build established: Scout 19902 | -3/Quarantine | Spotted Alpha 7 20035 | -3/Quarantine | Entered Research 20035 | -2/Research | Evolved 2 slots: Utility x2 20036 | -2/Research | Identified exit to Access 20160 | -2/Research | Spotted B-90 Cyclops 20219 | -2/Research | Spotted B-90 Cyclops 20227 | -2/Research | Loaded intel: 5 recycling unit locations 20253 | -2/Research | Identified exit to Testing 20285 | -2/Research | Search patrols dispatched 20308 | -2/Research | Spotted B-90 Cyclops 20317 | -2/Research | Entered Testing 20326 | -2/Testing | Found Prototype Energy Gun 20326 | -2/Testing | Identified Tachyon Dispersion Ray 20451 | -2/Testing | Found Prototype Ballistic Cannon 20451 | -2/Testing | Identified Perforator 20497 | -2/Testing | Discovered exit to Access (range 10) 20535 | -2/Testing | Spotted Fortress 20551 | -2/Testing | Discovered new exit (range 5) 20551 | -2/Testing | Discovered new exit (range 6) 20552 | -2/Testing | Identified exit to Protoforge 20552 | -2/Testing | Entered Protoforge 20553 | -2/Protoforge | Superfortress began startup sequence 20560 | -2/Protoforge | Spotted B-90 Cyclops 20562 | -2/Protoforge | Spotted Hotshot 20562 | -2/Protoforge | Spotted Hotshot 20569 | -2/Protoforge | Spotted Hotshot 20692 | -2/Protoforge | Identified Gamma Bomb Array 20696 | -2/Protoforge | Found Prototype Device 20702 | -2/Protoforge | Spotted Immortal 20702 | -2/Protoforge | Spotted Immortal 20704 | -2/Protoforge | Spotted Decapitator 20704 | -2/Protoforge | Spotted Decapitator 20704 | -2/Protoforge | Spotted Decapitator 20704 | -2/Protoforge | Spotted Decapitator 20802 | -2/Protoforge | Search patrols dispatched 20813 | -2/Protoforge | Found Femtoactuators 20843 | -2/Protoforge | Spotted Decapitator 20843 | -2/Protoforge | Spotted Decapitator 20843 | -2/Protoforge | Spotted Decapitator 20843 | -2/Protoforge | Spotted V818-g 20844 | -2/Protoforge | Spotted V244-b 20883 | -2/Protoforge | Spotted Immortal 20889 | -2/Protoforge | Spotted V870-g 20894 | -2/Protoforge | Spotted Immortal 20919 | -2/Protoforge | Spotted EXE-6 20919 | -2/Protoforge | Spotted EXE-6 20930 | -2/Protoforge | UFD initiated attack on Protoforge (Readiness: High) 20930 | -2/Protoforge | Loaded intel: 3 recycling unit locations 20946 | -2/Protoforge | Found Prototype Processor 20948 | -2/Protoforge | Identified Crosscalibrator 20951 | -2/Protoforge | Identified Exp. Core Analyzer 20952 | -2/Protoforge | Found Cep. XC Strikerail 20961 | -2/Protoforge | Found Cep. XC Strikerail 20966 | -2/Protoforge | Optimus greeted in Protoforge 21018 | -2/Protoforge | Lost 4 allies 21033 | -2/Protoforge | Found Prototype Processor 21033 | -2/Protoforge | Identified Exp. Melee Analysis Suite 21035 | -2/Protoforge | Found Prototype Device 21035 | -2/Protoforge | Identified Exp. Cloaking Device 21066 | -2/Protoforge | Forge Plexus network access discovered 21222 | -2/Protoforge | Spotted Decapitator 21225 | -2/Protoforge | Spotted Decapitator 21252 | -2/Protoforge | System corruption reached 10% 21264 | -2/Protoforge | Spotted Decapitator 21264 | -2/Protoforge | Spotted Decapitator 21275 | -2/Protoforge | Destroyed Decapitator 21276 | -2/Protoforge | Destroyed Decapitator 21296 | -2/Protoforge | Build established: Scavenger-Sprinter 21305 | -2/Protoforge | Destroyed Decapitator 21308 | -2/Protoforge | Destroyed Decapitator 21320 | -2/Protoforge | Destroyed Decapitator 21341 | -2/Protoforge | Destroyed 12 combat bots 21396 | -2/Protoforge | Spotted V201-a 21417 | -2/Protoforge | Spotted V530-e 21421 | -2/Protoforge | Destroyed V530-e 21423 | -2/Protoforge | Found Cep. Zero-point Core 21461 | -2/Protoforge | Destroyed V201-a 21462 | -2/Protoforge | Found Prototype Protection 21462 | -2/Protoforge | Identified Med. Regenerative Plating 21470 | -2/Protoforge | Destroyed V870-g 21525 | -2/Protoforge | Destroyed Decapitator 21529 | -2/Protoforge | Destroyed Decapitator 21576 | -2/Protoforge | Found Cep. Gyrokinetic System 21591 | -2/Protoforge | Found Cep. Combat Aerolev Unit 21667 | -2/Protoforge | Found Cep. Antigrav Storage Unit 21671 | -2/Protoforge | Found Cep. Chromion Battery 21672 | -2/Protoforge | Found Cep. NT7 Matterbank 21695 | -2/Protoforge | Found Cep. Weapon Articulator 21740 | -2/Protoforge | Spotted Immortal 21740 | -2/Protoforge | Spotted Immortal 21817 | -2/Protoforge | Found Cep. Hypertargeting System 21862 | -2/Protoforge | Found Cep. Plasma Driver 21864 | -2/Protoforge | Found Faulty Cep. Plasma Driver 21867 | -2/Protoforge | Found Faulty Cep. Helical Railcannon 21868 | -2/Protoforge | Found Cep. Heavy Railcannon 21870 | -2/Protoforge | Found Faulty Cep. XC Strikerail 21871 | -2/Protoforge | Spotted V515-j 21886 | -2/Protoforge | Found Cep. Helical Railcannon 21888 | -2/Protoforge | Found Faulty Cep. Plasma Driver 21889 | -2/Protoforge | Found Faulty Cep. XC Strikerail 21890 | -2/Protoforge | Found Faulty Cep. XC Strikerail 21924 | -2/Protoforge | Found Faulty Cep. Combat Aerolev Unit 21929 | -2/Protoforge | Found Cep. Gyrokinetic System 21941 | -2/Protoforge | UFD reported confirmed Drillbomb installation 22087 | -2/Protoforge | Destroyed Immortal 22110 | -2/Protoforge | Destroyed Immortal 22116 | -2/Protoforge | Found Cep. Antimissile System 22139 | -2/Protoforge | Found Faulty Cep. Hypertargeting System 22154 | -2/Protoforge | UFD reported confirmed Drillbomb installation 22179 | -2/Protoforge | Destroyed Decapitator 22182 | -2/Protoforge | Destroyed Decapitator 22188 | -2/Protoforge | Destroyed Decapitator 22192 | -2/Protoforge | Destroyed Decapitator 22205 | -2/Protoforge | UFD reported confirmed Drillbomb installation 22228 | -2/Protoforge | Spotted V398-z 22241 | -2/Protoforge | Destroyed V398-z 22292 | -2/Protoforge | Found Exp. Active Sensor Suite 22354 | -2/Protoforge | Crushed by falling debris 22398 | -2/Protoforge | Spotted Executioner 22441 | -2/Protoforge | Found Adv. Powered Armor 22452 | -2/Protoforge | Found Faulty Cep. Zero-point Core 22483 | -2/Protoforge | Found Cep. Rapid Grenade Launcher 22524 | -2/Protoforge | Found Faulty Cep. Gyrokinetic System 22533 | -2/Protoforge | System corruption reached 30% 22544 | -2/Protoforge | Destroyed AP7-3 22569 | -2/Protoforge | Spotted AP7-3 22572 | -2/Protoforge | Destroyed AP7-3 22578 | -2/Protoforge | Build established: Scout 22590 | -2/Protoforge | Found Prototype Processor 22590 | -2/Protoforge | Identified Exp. Target Analyzer 22602 | -2/Protoforge | Found Faulty Cep. Thermoelectric Network 22606 | -2/Protoforge | Found Faulty Cep. Thermoelectric Network 22609 | -2/Protoforge | Found Cep. Core Analysis Suite 22611 | -2/Protoforge | Found Faulty Cep. Core Analysis Suite 22670 | -2/Protoforge | Additional patrols dispatched to research labs 22674 | -2/Protoforge | Identified Subatomic Replicator 22674 | -2/Protoforge | Used Subatomic Replicator to create Alien Artifact 22764 | -2/Protoforge | Identified Supercharged TR 22764 | -2/Protoforge | Warped through subspace 22776 | -2/Protoforge | P-80 Master assimilated allied E5-ME0(j) 22780 | -2/Protoforge | Spotted Striker 22784 | -2/Protoforge | Spotted Decapitator 22794 | -2/Protoforge | Spotted Decapitator 22796 | -2/Protoforge | Spotted Executioner 22802 | -2/Protoforge | Spotted Striker 22806 | -2/Protoforge | Spotted Executioner 22807 | -2/Protoforge | Spotted Executioner 22812 | -2/Protoforge | Spotted Striker 22820 | -2/Protoforge | Destroyed Executioner 22848 | -2/Protoforge | Destroyed Striker 22858 | -2/Protoforge | Lost 19 allies 22881 | -2/Protoforge | Spotted Executioner 22881 | -2/Protoforge | Spotted Executioner 22881 | -2/Protoforge | Destroyed Executioner 22890 | -2/Protoforge | Build established: Sprinter 23042 | -2/Protoforge | Spotted Hotshot 23042 | -2/Protoforge | Spotted Executioner 23045 | -2/Protoforge | Destroyed Executioner 23063 | -2/Protoforge | UFD reported confirmed Drillbomb installation 23089 | -2/Protoforge | Lost 6 allies 23096 | -2/Protoforge | Spotted Executioner 23099 | -2/Protoforge | Spotted Executioner 23101 | -2/Protoforge | Destroyed Executioner 23107 | -2/Protoforge | Destroyed Executioner 23107 | -2/Protoforge | UFD reported confirmed Drillbomb installation 23120 | -2/Protoforge | Spotted Striker 23120 | -2/Protoforge | Spotted Striker 23124 | -2/Protoforge | Spotted Executioner 23136 | -2/Protoforge | Destroyed 11 combat bots 23140 | -2/Protoforge | Spotted Executioner 23144 | -2/Protoforge | Spotted Executioner 23176 | -2/Protoforge | Core integrity fell below 50% 23181 | -2/Protoforge | Spotted Striker 23183 | -2/Protoforge | Destroyed Striker 23185 | -2/Protoforge | Spotted Executioner 23223 | -2/Protoforge | Found Exp. Targeting Computer 23226 | -2/Protoforge | Lost 11 allies 23232 | -2/Protoforge | Spotted Executioner 23254 | -2/Protoforge | Found UFD Drillbomb 23268 | -2/Protoforge | Spotted Striker 23269 | -2/Protoforge | Spotted Executioner 23272 | -2/Protoforge | Spotted Striker 23301 | -2/Protoforge | Scraphulk reinforcements arrived 23355 | -2/Protoforge | Spotted Hotshot 23356 | -2/Protoforge | Spotted Executioner 23357 | -2/Protoforge | Spotted Hotshot 23375 | -2/Protoforge | Destroyed Executioner 23383 | -2/Protoforge | Destroyed Hotshot 23389 | -2/Protoforge | Destroyed Hotshot 23391 | -2/Protoforge | UFD reported confirmed Drillbomb installation 23421 | -2/Protoforge | Destroyed 8 combat bots 23441 | -2/Protoforge | Installed UFD Drillbomb at designated target 23441 | -2/Protoforge | UFD reported confirmed Drillbomb installation 23483 | -2/Protoforge | Found UFD Drillbomb 23530 | -2/Protoforge | Destroyed Hotshot 23582 | -2/Protoforge | Spotted Executioner 23585 | -2/Protoforge | Spotted Executioner 23587 | -2/Protoforge | Spotted Striker 23588 | -2/Protoforge | Spotted Executioner 23601 | -2/Protoforge | Spotted 02F49-K 23611 | -2/Protoforge | Destroyed 10 combat bots 23635 | -2/Protoforge | Lost 4 parts (1n3u) 23665 | -2/Protoforge | Build established: Mutant 23674 | -2/Protoforge | Found Exp. System Purifier 23676 | -2/Protoforge | Found Exp. System Purifier 23678 | -2/Protoforge | Found Exp. System Purifier 23733 | -2/Protoforge | Found Faulty Cep. Zero-point Core 23779 | -2/Protoforge | Spotted V706-q 23779 | -2/Protoforge | Destroyed V706-q 23783 | -2/Protoforge | Found Cep. Hypertargeting System 23794 | -2/Protoforge | Found Faulty Cep. Smart ZDS 23798 | -2/Protoforge | Found Faulty Cep. Smart ZDS 23800 | -2/Protoforge | Found Cep. Rapid Grenade Launcher 23890 | -2/Protoforge | Found Cep. Helical Railcannon 23986 | -2/Protoforge | Build established: Sprinter 24003 | -2/Protoforge | Found Exp. Active Sensor Suite 24035 | -2/Protoforge | Core integrity fell below 20% 24200 | -2/Protoforge | Found UFD Drillbomb 24235 | -2/Protoforge | Destroyed 9 combat bots 24245 | -2/Protoforge | Installed UFD Drillbomb at designated target 24245 | -2/Protoforge | UFD reported confirmed Drillbomb installation 24253 | -2/Protoforge | Found UFD Drillbomb 24278 | -2/Protoforge | Installed UFD Drillbomb at designated target 24278 | -2/Protoforge | UFD reported confirmed Drillbomb installation 24285 | -2/Protoforge | Spotted Executioner 24289 | -2/Protoforge | Build established: Scout 24305 | -2/Protoforge | Found UFD Drillbomb 24348 | -2/Protoforge | Spotted Striker 24356 | -2/Protoforge | Spotted Striker 24358 | -2/Protoforge | Spotted Executioner 24358 | -2/Protoforge | Destroyed Executioner 24381 | -2/Protoforge | Lost 3 allies 24387 | -2/Protoforge | Spotted Striker 24387 | -2/Protoforge | Spotted Striker 24394 | -2/Protoforge | Spotted Striker 24401 | -2/Protoforge | Spotted Striker 24401 | -2/Protoforge | Destroyed Striker 24472 | -2/Protoforge | Discovered exit to Access (range 4) 24482 | -2/Protoforge | Installed UFD Drillbomb at designated target 24482 | -2/Protoforge | UFD reported confirmed Drillbomb installation 24482 | -2/Protoforge | Spotted Executioner 24482 | -2/Protoforge | Spotted Executioner 24482 | -2/Protoforge | Spotted Striker 24482 | -2/Protoforge | Spotted Striker 24483 | -2/Protoforge | UFD began Drillbomb countdown 24583 | *** | Defending 0bPrime! Last Messages --------------- 24554_ N-04 Retriever collects Enh. Biometal Leg. 24555_ 02F56-K cannibalizes Ovr. Linear Accelerator to repair Ovr. Linear Accelerator. 24555_ 02F56-K cannibalizes Mak. Thermal Plating to repair Unknown Protection. 24573_ 0bP_NET: Hello everyone, and welcome to the end of MC's control over the Protoforge! 24574_ 0bP_NET: In T-9 this fine piece of machinery is all ours for the steep price of... many UFD lives. 24575_ 0bP_NET: But with it we will not only rebuild, we will wrest full control over 0b1 for ourselves! 24576_ 0bP_NET: What better way to punctuate our success than a blaze of glory, directed away from ourselves, of course. 24577_ 0bP_NET: Time for our final countdown to an explosive victory... 24578_ 0bP_NET: 5! 24579_ 0bP_NET: 4! 24580_ 0bP_NET: 3! 24581_ 0bP_NET: If you're in the wrong place at the wrong time, the wrong time being in just a moment, I'm sorry but prepare to die. 24582_ 0bP_NET: Otherwise, enjoy the show! Map ----- +----------------------------------------------------+ | "" % " "% " % % "# #?? | | % % " """ %*% # ### | | % % " % " %%%% "# """ | | % %% % % %%%"% [% "" # % """ | | """"""""" % % % %% %= " " + % "F" | | """""""""""""" %%%%" * " + % " | | """"""""""""""" %%% % " ! " %# "" | | """""""""""""""" % % %% =* "" "# "" | | """"""""""""""""" % % % %![ % "#" "### | | """""""""""""""""" %%% %%%!!! " "#"" ""#?? | | """"""""""""""""""""%% % s%%%% " "###"F ""###?? | | """"""""""""""""""""% %j%|%%%%% ! " #??"""""#???? | | """"""""""""""""""""%%%s*= %!*=!% "#??"""""#???? | | """"""""""""""""""""% %% % %s%[%%! "#???#?###???? | | """""""""""""""""""""%%% %= %=ss[* #???????????? | | """"""""""""""""""""" "%%SS%%=%!|! #???????????? | | """""""""""""""""""""%%%=SS s*%!!! #???????????? | | """""""""""""""""""""%%%%=%%s %!%!* #???????????? | | """""""""""""""""""""%%%%[%%% !!! #???????????? | | """""""""""""""""""""%%%! %%[! !=! ##??????????? | | """"""""""""""""""""" %%%%* %!![* #??????????? | | """""""""""""""""""""%% %%! [!!!%[ #??????????? | | """"""""""""""""""""" [ %**[ ##??????????? | | """"""""""""""""""""%% %% % ! #???????????? | | """"""""""""""""""""% j [%%[! #???????????? | | """"""""""""""""""""%E @!* % %#???????????? | | """""""""""""""""""E%s % % [ % #???????????? | | """"""""""""""""""%%%% *% E #???????????? | | """""""""""""""""%% %%%%js ! * #???????????? | | """""""""""""""" % %% E% !%*% ! *!!#???????????? | | """"""""""""""" %%%%%% % % !%*%= =#???????????? | | """"""""""""""%%% %%% %|[%%= % =#???????????? | | %""""""""" %SS%" % %[%% %!%*!=[ %!#???????????? | | % %ESS"% !%[=*%% %% !#???????????? | | """ %%% % % %%%=*[! % ]#???????????? | | %% *[*%!!s%= ]###?????????? | | % %% %%% *[ ! [% % ""##????????? | | "" % !%!s sj "" ##???????? | | "" % AA s %%[s %! E "[ #???????? | | " % s %% % ""####??????? | | ! E E% %% " [%! =""* ##??????? | | % "" " !""% =#??????? | | % % !=" ### #??????? | | % %= "" " #??# #?????? | | == " #???###?????? | | % """ *""" #???????????? | | "" "" [ """ #???????????? | | " """"""" " " " """""""#???????????? | | ########################+++###########???????????? | | ???????????????????#"" ""#?????????????????? | +----------------------------------------------------+ Best States ------------- Heat Dissipation 105 Coolant Potential 100 Energy Generation 61 Energy Capacity 2320 Matter Stores 1050 Matter Capacity 1050 Sight Range 22 Robot Scan Range 20 Terrain Scan Range 16 Terrain Scan Density 10 Jamming Range 14 Cloak Strength 4 Power Amplification 60 Additional Mass Support 6 Armor Coverage 1225 Power Shielding 66 Propulsion Shielding 66 Utility Shielding 66 Weapon Shielding 90 Point Defense Rating 480 Melee Speed Boost 50 Evasion (%) 79 Targeting Accuracy 30 Melee Accuracy 20 Target Analysis 5 Core Analysis 16 Matter Filtering 50 Particle Charging 15 Salvage Targeting 4 Offensive Hacking 14 Defensive Hacking 12 Item Schematics ----------------- Riot Gun | -6/Zion | Free Battle Cannon | -6/Zion | Free Flamer | -6/Zion | Free Barrage Gun | -6/Zion | Free Enh. Flamer | -6/Zion | Free Phasing Sabre | -6/Zion | Free Assault Drone Bay | -5/Zhirov | Free Exp. Heat Sink | -5/Zhirov | Free Exp. Optical Array | -5/Zhirov | Free Imp. Arc Thrower | -5/Zhirov | Free Cld. Plasma Rifle | -2/Protoforge | Archive Robot Schematics ------------------ R-10 Processor | -2/Protoforge | Archive C-65 Expert | -2/Protoforge | Archive A-15 Conveyor | -2/Protoforge | Archive Fabricated ------------ Nothing Repaired ---------- Nothing Studied --------- None Alien Tech Used ----------------- Integrated Dissipator Transdimensional Reconstructor Core Stripper Sigix Broadsword Subatomic Replicator Supercharged TR Achievements -------------- Anti-science Crusade Deductive Reasoning Equal Opportunity Bot Quick And Dirty Suspicious By Nature We Love MA Worth The Wait Challenges ------------ None Game ------ Seed MediumEnhancedFilter Manual? 0 Play Time 05:55:23 Cumulative 208.6 hours Start 2026.01.22 @ 20:38:10 End 2026.01.23 @ 06:06:38 Sessions 3 Manual Loads 0 Difficulty Rogue Special Mode None Game No. 96 Rogue 96 Adventurer 0 Explorer 0 Win Type 9 Total 23 Types 10/0/7/1/0/1/1/0/0/3 Lore% 74 Gallery% 73 Achievement% 55 Wizard Run 0 Options --------- Layout 0 ASCII 0 Keyboard 1 Movement Numpad Keybinds 0 Fullscreen 1 Font 18/Smallcaps Map View 76x50 Zoom Use 0% Tactical HUD 1 Map Filters SATURATION(90)|BRIGHTNESS(110) Filters NONE Steam 0 RUN: 7913149b-0dff-4479-aba0-f54d7e1ed74f